Cogmind - Beta 17 @@@ ROGUE MODE // 2026.06.29 @ 22:30:19 Player: Mediocre Result: Establishing 0b11! Performance ------------- Evolutions (9) 4500 Regions Visited (35) 7000 Robots Destroyed (188) 940 Value Destroyed (7060) 7060 Prototype IDs (368) 7360 Alien Tech Used (6) 1200 Bonus (46084) 46084 TOTAL SCORE: 74144 Bonus ------- High Alert Combat Kills 558 Follower Combat Kills 1626 Installed LC Capacitor 1000 Entered Garrisons 200 Network Hubs Disabled 200 Met Data Miner 300 Used Data Conduit 3000 Acquired ECA 300 Built Enhanced Grunts 300 A7 Reached Mainframe 300 Met R17 at Cetus 500 Found Hidden Lab 3000 Destroyed MAIN.C Guards 500 Destroyed MAIN.C Shell 5000 Destroyed MAIN.C 10000 Destroyed A8 300 Destroyed A2 1000 Destroyed Architect 15000 Win 3000 Cogmind --------- Core Integrity 1271/1600 Matter 156/300 Energy 673/700 System Corruption 0% Temperature Cool (21) Movement Treading (167) Location 0b11 Command Parts ------- > --- POWER (2) -------- Vortex Chain Reactor > --- PROPULSION (8) --- Armored Heavy Treads Improved Heavy Siege Treads Enhanced Armored Heavy Treads High-density Centrium Heavy Treads > --- UTILITY (12) ----- Experimental Cooling System Huge Storage Unit Enhanced Optical Array Advanced Targeting Computer Experimental Targeting Computer Experimental Targeting Computer Experimental Targeting Computer Experimental Targeting Computer Experimental Powered Armor Heavy Regenerative Plating Advanced Force Field > --- WEAPON (4) ------- L-Cannon > --- INVENTORY (25) --- Quantum Reactor Vortex Chain Reactor Armored Heavy Treads Armored Heavy Treads Experimental Energy Well (600) Experimental Matter Compressor (500) Experimental Matter Compressor (500) Experimental Core Analyzer Centrium Heavy Armor Plating Centrium Linked Plating Architect God Chip A Architect God Chip A Architect God Chip A Architect God Chip D Architect God Chip D Modified Sigix Sheargun Multirail Perforator Kinetic Spear Peak State ------------ > --- POWER ------------ Vortex Chain Reactor > --- PROPULSION ------- Armored Heavy Treads Improved Heavy Siege Treads Enhanced Armored Heavy Treads High-density Centrium Heavy Treads > --- UTILITY ---------- Experimental Cooling System Huge Storage Unit Enhanced Optical Array Advanced Targeting Computer Experimental Targeting Computer Experimental Targeting Computer Experimental Targeting Computer Experimental Targeting Computer Experimental Powered Armor Heavy Regenerative Plating Advanced Force Field > --- WEAPON ----------- L-Cannon > --- INVENTORY -------- Quantum Reactor Quantum Reactor Vortex Chain Reactor Armored Heavy Treads Armored Heavy Treads Experimental Energy Well Experimental Matter Compressor Experimental Matter Compressor Experimental Core Analyzer Centrium Heavy Armor Plating Centrium Linked Plating Architect God Chip A Architect God Chip A Architect God Chip A Architect God Chip D Architect God Chip D High-powered Transdimensional Reconstructor Multirail Perforator Kinetic Spear [Rating: 249] Favorites ----------- Power Backup Power VII Engine Heavy Ion Engine Power Core Backup Power VII Reactor Vortex Chain Reactor Propulsion Armored Heavy Treads Treads Armored Heavy Treads Leg Aluminum Leg Wheel Wheel Flight Unit Cooled VTOL Module Utility Experimental Targeting Computer Device Improved Sensor Array Storage Small Storage Unit Processor Experimental Targeting Computer Hackware Hacking Suite Protection Experimental Powered Armor Artifact LC Capacitor Weapon Heavy Machine Gun Energy Gun Beam Rifle Energy Cannon L-Cannon Ballistic Gun Heavy Machine Gun Ballistic Cannon Improved Light Cannon Launcher Advanced Micro-nuke Launcher Special Weapon Improved Plasma Cutter Impact Weapon Impact Mace Slashing Weapon Great Axe Piercing Weapon Kinetic Spear Special Melee Weapon Improved Datajack Build | -11 -10 -10 -9 -9 -9 -8 -8 -8 -8 -7 -7 -7 -7 -6 -6 -6 -6 -6 -5 -5 -5 -5 -5 -5 -4 -4 -4 -3 -3 -3 -2 -2 -1 -1 -1 ------- Run | Yrd Mat Min Mat Min Exi Min Mat Gar Mat Fac Low Low Dat Pro Fac Low Low Zio Pro Fac Ext Cet Arc Hub Fac Arm Lab Res Qua Sec Res Tes Acc Com Ac0 Slots Evolved 18 | . . . 2 . . . 2 . . 2 . . . . 2 . . . . 2 . . . . 2 . . 2 . . 2 . 2 . . Power 1 | . . . . . . . . . . . . . . . . . . . . . . . . . 1 . . . . . . . . . . Propulsion 6 | . . . 1 . . . 1 . . . . . . . 1 . . . . . . . . . . . . 1 . . 1 . 1 . . Utility 10 | . . . 1 . . . 1 . . 2 . . . . 1 . . . . 2 . . . . 1 . . 1 . . . . 1 . . Weapon 1 | . . . . . . . . . . . . . . . . . . . . . . . . . . . . . . . 1 . . . . Parts Attached 170 | 4 4 3 10 2 . 1 19 12 14 15 1 1 2 3 2 1 3 . . 3 5 1 1 5 . 5 6 2 1 1 4 3 1 34 1 Power 19 | . 1 . 2 1 . . 1 2 1 1 1 . . 1 . . 1 . . . . . . . . 3 . . . 1 . . . 3 . Engine 7 | . 1 . 2 1 . . 1 1 . . . . . . . . . . . . . . . . . 1 . . . . . . . . . Core 9 | . . . . . . . . 1 1 1 1 . . 1 . . 1 . . . . . . . . 2 . . . 1 . . . . . Reactor 3 | . . . . . . . . . . . . . . . . . . . . . . . . . . . . . . . . . . 3 . Propulsion 59 | 2 . 1 5 . . . 7 6 8 7 . . . 2 1 . 1 . . . 2 . . 3 . . . 2 . . 1 1 . 10 . Treads 21 | 2 . 1 4 . . . 1 2 1 . . . . . . . . . . . . . . . . . . . . . . . . 10 . Leg 11 | . . . . . . . 3 4 4 . . . . . . . . . . . . . . . . . . . . . . . . . . Wheel 1 | . . . 1 . . . . . . . . . . . . . . . . . . . . . . . . . . . . . . . . Hover . | . . . . . . . . . . . . . . . . . . . . . . . . . . . . . . . . . . . . Flight 26 | . . . . . . . 3 . 3 7 . . . 2 1 . 1 . . . 2 . . 3 . . . 2 . . 1 1 . . . Utility 52 | . 3 . 1 1 . 1 5 1 1 4 . . . . 1 1 1 . . 3 2 1 1 . . 2 4 . 1 . 1 2 . 15 . Device 18 | . 2 . . 1 . . 3 . . 2 . . . . . . . . . 1 . . . . . 1 1 . . . 1 1 . 5 . Storage 4 | . 1 . . . . 1 . . . . . . . . . . . . . . . . . . . . . . . . . . . 2 . Processor 11 | . . . . . . . 1 . . 1 . . . . 1 1 . . . 1 . . . . . . . . . . . 1 . 5 . Hackware 9 | . . . . . . . 1 . 1 1 . . . . . . 1 . . 1 . . 1 . . 1 1 . 1 . . . . . . Protection 9 | . . . 1 . . . . 1 . . . . . . . . . . . . 2 1 . . . . 1 . . . . . . 3 . Artifact 1 | . . . . . . . . . . . . . . . . . . . . . . . . . . . 1 . . . . . . . . Weapon 40 | 2 . 2 2 . . . 6 3 4 3 . 1 2 . . . . . . . 1 . . 2 . . 2 . . . 2 . 1 6 1 Energy Gun 8 | 2 . 1 2 . . . 2 . 1 . . . . . . . . . . . . . . . . . . . . . . . . . . Energy Cannon 5 | . . . . . . . . . . . . . . . . . . . . . . . . . . . 1 . . . 1 . 1 2 . Ballistic Gun 9 | . . 1 . . . . 3 . 1 . . . . . . . . . . . . . . . . . . . . . . . . 4 . Ballistic Cannon 7 | . . . . . . . 1 3 1 . . . . . . . . . . . 1 . . . . . . . . . . . . . 1 Launcher 2 | . . . . . . . . . . . . 1 . . . . . . . . . . . . . . . . . . 1 . . . . Special Weapon 2 | . . . . . . . . . . . . . . . . . . . . . . . . 1 . . 1 . . . . . . . . Impact Weapon 4 | . . . . . . . . . 1 3 . . . . . . . . . . . . . . . . . . . . . . . . . Slashing Weapon 1 | . . . . . . . . . . . . . 1 . . . . . . . . . . . . . . . . . . . . . . Piercing Weapon 1 | . . . . . . . . . . . . . . . . . . . . . . . . 1 . . . . . . . . . . . Special Melee Weapon 1 | . . . . . . . . . . . . . 1 . . . . . . . . . . . . . . . . . . . . . . Unidentified Prototypes 12 | . . . 1 1 . . 1 . . 3 . . . . . . . . . . . . . . . . 5 . 1 . . . . . . Parts Lost 52 | . . 3 1 . . . 14 10 6 4 1 . 1 3 . 1 . . . . . . . 2 . 3 . . . 2 . . 1 . . Power 8 | . . 1 . . . . 1 1 1 . . . . 1 . . . . . . . . . 1 . 1 . . . 1 . . . . . Propulsion 22 | . . 1 1 . . . 4 5 2 3 1 . 1 1 . 1 . . . . . . . 1 . 1 . . . . . . . . . Utility 11 | . . . . . . . 4 1 2 1 . . . . . . . . . . . . . . . 1 . . . 1 . . 1 . . Weapon 11 | . . 1 . . . . 5 3 1 . . . . 1 . . . . . . . . . . . . . . . . . . . . . Highest Loss Streak 9 | . . 2 1 . . . 9 4 2 2 1 . 1 1 . 1 . . . . . . . 1 . 3 . . . 2 . . 1 . . To Critical Strikes . | . . . . . . . . . . . . . . . . . . . . . . . . . . . . . . . . . . . . Average Backups 9 | 1 6 7 5 7 8 10 13 13 13 7 7 8 8 6 6 6 6 6 6 5 7 8 8 7 6 6 7 7 7 6 4 4 3 10 17 Power . | . . . . . . . . . . 1 1 1 1 . . . . . . . . . . . . . 1 1 1 . . . . 1 2 Propulsion 2 | . . 1 1 3 3 4 4 5 5 1 . 1 1 . . . . . . 1 1 2 2 1 1 . . . 1 1 . 1 1 2 3 Utility 2 | . . 1 1 1 2 2 4 4 3 3 3 3 3 4 4 3 3 3 3 2 2 2 3 3 2 2 2 3 2 1 . . . 1 7 Weapon 2 | . 4 4 2 2 3 3 2 3 1 . 2 2 2 2 2 2 2 2 2 2 2 2 2 2 2 2 1 1 1 1 1 1 1 3 3 Tool/Special . | . . . . . . . . . . . . . . . . . . . . . . . . . . . . . . . . . . . . Unused Backups 32 | . 1 2 . 2 . . 1 1 . . 1 . 1 . . . . . 1 . 1 . . . . . . . 1 . . 1 . 2 17 Power 3 | . . . . . . . . . . . . . . . . . . . . . . . . . . . . . . . . . . . 3 Propulsion 7 | . . 1 . 1 . . . 1 . . . . . . . . . . . . . . . . . . . . . . . . . 1 3 Utility 13 | . . . . . . . . . . . . . 1 . . . . . . . 1 . . . . . . . . . . . . 1 10 Weapon 5 | . 1 1 . 1 . . 1 . . . . . . . . . . . . . . . . . . . . . . . . . . . 1 Tool/Special 4 | . . . . . . . . . . . 1 . . . . . . . 1 . . . . . . . . . 1 . . 1 . . . Average Slot Usage (%) 84 | . 82 86 82 99 100 100 81 82 94 98 99 100 100 97 85 87 96 100 100 98 98 100 100 95 86 92 90 80 77 75 75 83 74 67 64 Engine 2 | . 9 1 5 11 11 11 8 5 1 . . . . . . . . . . . . . . . 2 7 . . . . . . . . . Core 3 | . . . . . . . . 2 6 7 7 7 7 6 6 6 6 6 6 5 5 5 5 4 . . 10 9 9 9 8 8 7 2 . Treads 12 | . 28 27 28 33 33 33 20 2 5 . . . . . . . . . . . . . . . . . . . . . . . . 13 15 Leg 2 | . . . . . . . 4 22 25 . . . . . . . . . . . . . . . . . . . . . . . . . . Flight 9 | . . . . . . . . . 3 29 29 30 30 29 32 27 29 33 33 29 29 29 29 27 26 24 25 25 22 22 25 25 23 . . Device 8 | . 6 14 11 10 11 11 14 4 . 6 7 7 7 7 6 6 6 6 6 11 11 11 11 11 10 8 6 4 4 2 4 10 9 7 6 Storage 6 | . 8 14 11 11 11 11 9 9 8 7 7 7 7 7 6 6 6 6 6 5 5 5 5 5 5 5 5 4 4 4 4 4 3 3 3 Processor 11 | . . . . . . . . 9 9 14 15 15 15 15 13 16 20 20 20 17 17 17 17 17 15 15 15 13 13 13 12 12 11 16 23 Hackware 5 | . . . . . . . . 9 14 15 15 15 15 15 13 13 13 13 13 15 11 11 11 11 10 14 15 13 13 11 8 8 7 1 . Protection 5 | . . . 2 11 11 11 4 1 1 . . . . . . . . . . . 4 5 5 5 5 5 3 . . 2 4 4 3 8 7 Energy Gun 5 | . 28 27 17 22 22 22 8 . 4 . . . . . . . . . . . . . . . . . . . . . . . . . . Ballistic Gun 3 | . . . 4 . . . 7 4 1 . . . . . . . . . . . . . . . . . . . . . . . . 7 . Ballistic Cannon 1 | . . . . . . . . 11 10 . . . . . . . . . . . . . . . . . . . . . . . . . . Impact Weapon 1 | . . . . . . . . . . 14 15 15 2 2 . 3 6 6 6 5 4 5 5 2 . . . . . . . . . . . Slashing Weapon 1 | . . . . . . . . . . . . . 6 4 6 6 5 6 6 5 4 5 5 5 5 2 . . . . . . . . . Peak Build Rating 249 | 4 8 8 15 21 16 16 24 25 26 49 50 50 50 49 52 58 65 65 65 73 77 82 84 89 92 104 140 153 155 159 149 159 184 244 249 Average Rating 90 | 3 6 7 10 15 16 16 17 20 23 42 49 49 48 47 47 53 63 65 64 70 74 81 83 83 87 94 114 147 153 143 134 149 154 186 242 On Entrance 70 | . 4 8 6 15 16 16 16 24 20 25 47 50 50 44 41 49 58 65 65 64 73 77 82 84 86 91 104 140 153 155 117 149 150 145 244 Avg Prop Armor Cover (%) 17 | 30 29 . 23 . . . 9 8 9 . . . . . . . . . . . . . . 1 2 . . . . . . . . . . Naked Turns . | . . . . . . . . . . . . . . . . . . . . . . . . . . . . . . . . . . . . Heaviest Build 232 | 3 12 12 25 32 25 40 42 38 38 17 17 17 17 16 15 18 21 18 21 19 26 26 26 26 24 24 38 31 31 37 46 47 38 232 232 Greatest Support 305 | 3 40 40 60 60 60 60 80 46 45 23 21 21 25 23 27 27 27 27 31 27 31 26 26 27 32 27 25 41 37 44 52 49 49 305 305 Greatest Overweight (x) 3 | . . . . . . . 3 2 1 1 . . . . . . . . . . . . . . 1 . 1 1 . . . . . . . Average Overweight (x) . | . . . . . . . . . . . . . . . . . . . . . . . . . . . . . . . . . . . . Largest Inventory Capacity 25 | 5 8 8 8 8 8 15 15 15 15 8 8 8 8 8 8 8 8 8 8 8 8 8 8 8 8 8 8 8 8 8 8 8 8 25 25 Average Capacity 13 | 5 6 8 8 8 8 13 15 15 13 8 8 8 8 8 8 8 8 8 8 8 8 8 8 8 8 8 8 8 8 8 8 8 8 19 25 Most Carried 25 | 3 8 8 8 8 8 11 15 15 15 8 8 8 8 8 7 8 8 8 8 6 8 8 8 8 7 8 8 8 8 8 8 8 8 25 25 Average Carried 11 | 1 6 7 6 7 8 10 13 13 13 7 7 8 7 6 6 7 7 8 6 5 7 7 8 7 6 6 7 7 7 7 7 8 7 17 23 Final Capacity 25 | 5 8 8 8 8 8 15 15 15 8 8 8 8 8 8 8 8 8 8 8 8 8 8 8 8 8 8 8 8 8 8 8 8 8 25 25 Final Carried 24 | 3 8 6 8 8 8 11 15 13 8 8 8 8 8 8 7 8 8 8 6 6 8 8 8 7 7 8 8 8 8 8 8 8 8 23 24 Class Distribution -------------------- 34% | Scavenger-Mutant 23% | Hacker-Scout 15% | Scavenger-Gunner 7% | Mutant 5% | Hacker-Mutant 4% | Commander-Scout Dominant Class ---------------- Mutant | -10/Materials Mutant | -10/Mines Scavenger-Mutant | -9/Materials Scavenger-Mutant | -9/Mines Scavenger-Mutant | -9/Exiles Scavenger-Mutant | -8/Mines Scavenger-Mutant | -8/Materials Scavenger-Mutant | -8/Garrison Scavenger-Mutant | -8/Materials Hacker-Scout | -7/Factory Hacker-Scout | -7/Lower Caves Hacker-Scout | -7/Lower Caves Hacker-Scout | -7/Data Miner Hacker-Scout | -6/Proximity Caves Hacker-Scout | -6/Factory Hacker-Scout | -6/Lower Caves Hacker-Scout | -6/Lower Caves Hacker-Scout | -6/Zion Hacker-Scout | -5/Proximity Caves Hacker-Scout | -5/Factory Hacker-Scout | -5/Extension Commander-Scout | -5/Cetus Commander-Scout | -5/Archives Hacker-Scout | -5/Hub_04(d) Hacker-Scout | -4/Factory Hacker-Scout | -4/Armory Wizard-Mutant | -4/Lab Wizard-Scout | -3/Research Wizard-Scout | -3/Quarantine Wizard-Sprinter | -3/Section 7 Hacker-Scout | -2/Research Hacker-Scout | -2/Testing Hacker-Scout | -1/Access Scavenger-Gunner | -1/Command Scavenger-Gunner | -1/Access_0 Resources | -11 -10 -10 -9 -9 -9 -8 -8 -8 -8 -7 -7 -7 -7 -6 -6 -6 -6 -6 -5 -5 -5 -5 -5 -5 -4 -4 -4 -3 -3 -3 -2 -2 -1 -1 -1 ----------- Run | Yrd Mat Min Mat Min Exi Min Mat Gar Mat Fac Low Low Dat Pro Fac Low Low Zio Pro Fac Ext Cet Arc Hub Fac Arm Lab Res Qua Sec Res Tes Acc Com Ac0 Matter Collected 4850 | 221 53 . 125 36 . 10 323 612 569 199 20 55 20 68 . . 190 . 34 30 171 10 10 . 55 13 . 164 . . 138 . . 1638 86 Remotely 10 | . 10 . . . . . . . . . . . . . . . . . . . . . . . . . . . . . . . . . . Salvage Created 7038 | . 482 102 544 172 . 86 756 541 443 578 17 46 30 55 . . 91 . 48 120 804 . 67 . 204 37 . 164 . . 34 . . 1191 426 Parts 362 | . 35 3 27 15 . 9 40 21 30 12 . 7 4 5 . . 8 . . 8 27 . 9 . 6 4 . 6 . . 1 . . 46 39 Haulers Intercepted 10 | . 1 . 2 . . . 1 . . 4 . . . . . . . . . 1 1 . . . . . . . . . . . . . . Recyclers Shooed 5 | . . 1 . . . . 2 . . . . . . . . . . . . . . . . . 1 . . . . . . . . 1 . Parts Field Recycled . | . . . . . . . . . . . . . . . . . . . . . . . . . . . . . . . . . . . . Retrieved Matter . | . . . . . . . . . . . . . . . . . . . . . . . . . . . . . . . . . . . . Parts Self-Destructed 15 | . . . . . . . . . . . 6 3 . 3 . . 3 . . . . . . . . . . . . . . . . . . Prevented 2 | . . . . . . . . . . . . . . 2 . . . . . . . . . . . . . . . . . . . . . Parts Restored . | . . . . . . . . . . . . . . . . . . . . . . . . . . . . . . . . . . . . Kills | -11 -10 -10 -9 -9 -9 -8 -8 -8 -8 -7 -7 -7 -7 -6 -6 -6 -6 -6 -5 -5 -5 -5 -5 -5 -4 -4 -4 -3 -3 -3 -2 -2 -1 -1 -1 ------- Run | Yrd Mat Min Mat Min Exi Min Mat Gar Mat Fac Low Low Dat Pro Fac Low Low Zio Pro Fac Ext Cet Arc Hub Fac Arm Lab Res Qua Sec Res Tes Acc Com Ac0 Combat Hostiles Destroyed 137 | . 11 2 11 9 . 6 20 20 15 7 1 4 . 4 . . 6 . 1 . 6 . . . . . . . . . . . . 10 4 Melee 6 | . . . . . . . . . . 2 1 . . . . . . . 1 . 1 . . . . . . . . . . . . 1 . Guns 63 | . 11 2 9 9 . 6 20 1 5 . . . . . . . . . . . . . . . . . . . . . . . . . . Cannons 33 | . . . . . . . . 19 10 . . . . . . . . . . . 2 . . . . . . . . . . . . . 2 AOE 19 | . . . . . . . . . . . . 4 . 4 . . 6 . . . . . . . . . . . . . . . . 5 . Classes Destroyed 15 | . 6 . 1 1 . . 1 1 1 1 . . . . . . 1 . . . 1 . . . 1 . . . . . . . . . . Worker 7 | . 1 . 1 . . . . . 1 . . . . . . . . . . 2 . . . . 1 . . . . . . . . 1 . Builder 3 | . . . . 1 . . . . . 1 . . . . . . . . . . 1 . . . . . . . . . . . . . . Hauler 10 | . 1 . 2 . . . 1 . . 4 . . . . . . . . . 1 1 . . . . . . . . . . . . . . Recycler 12 | . 1 . 1 1 . . 1 . . . . . . . . . . . . . 2 . . . 1 . . 1 . . . . . 4 . Mechanic 1 | . . . . . . . . . . . . . . . . . . . . . . . . . 1 . . . . . . . . . . Operator 11 | . 2 . . . . . 1 . 1 . . . . . . . . . . 1 . . 2 . 1 2 . . . . 1 . . . . Watcher 6 | . . . . . . . . . 1 2 . . . . . . . . . . 2 . . . . . . 1 . . . . . . . Swarmer 65 | . 6 . 4 9 . 6 11 6 3 . 1 4 . 4 . . 6 . . . . . . . . . . . . . . . . 5 . Grunt 45 | . 5 2 6 . . . 5 10 11 3 . . . . . . . . . . 3 . . . . . . . . . . . . . . Duelist 2 | . . . . . . . 1 1 . . . . . . . . . . . . . . . . . . . . . . . . . . . Sentry 8 | . . . 1 . . . 3 2 1 . . . . . . . . . . . . . . . . . . . . . . . . 1 . Hunter 3 | . . . . . . . . . . 1 . . . . . . . . 1 . . . . . . . . . . . . . . 1 . Programmer 6 | . . . . . . . . 1 . 3 . . . . . . . . . . . . . . . . . . . . . . . 2 . Behemoth 2 | . . . . . . . . . . . . . . . . . . . . . 2 . . . . . . . . . . . . . . Enhanced Grunt 2 | . . . . . . . . . . . . . . . . . . . . . . . . . . . . . . . . . . . 2 Samaritan 1 | . . . . . . . . . . . . . . . . . 1 . . . . . . . . . . . . . . . . . . Thug 1 | . . . . . . . . . . . . . . . . . . . . . 1 . . . . . . . . . . . . . . Best Kill Streak 7 | . 7 2 5 3 . 3 7 4 4 3 1 4 1 4 . . 3 . 1 2 3 . 2 . 2 1 . 1 . . 1 . . 5 3 Combat Bots Only 7 | . 7 2 5 3 . 3 5 4 3 2 1 4 . 4 . . 3 . 1 . 2 . . . . . . . . . . . . 5 3 Max Kills in Single Turn 4 | . 1 1 1 1 . 2 2 2 1 1 1 3 1 4 . . 2 . 1 1 1 . 1 . 1 1 . 1 . . 1 . . 2 1 Gunslinging 1 | . . . . . . 1 . . . . . . . . . . . . . . . . . . . . . . . . . . . . . Exploded 4 | . . . . . . . . . . . . 3 . 4 . . 2 . . . . . . . . . . . . . . . . 2 . Melee 1 | . . . . . . . . . . 1 1 . . . . . . . 1 . 1 . . . . . . . . . . . . 1 . Uniques/NPCs Destroyed 5 | . . . . . . . . . . . . . 1 . . . . . . . . . . . . . 1 . . . . . . 1 2 Data Miner (-7/Data Miner) A5 (-4/Lab) MAIN.C (-1/Command) A8 (-1/Access_0) Architect (-1/Access_0) Combat | -11 -10 -10 -9 -9 -9 -8 -8 -8 -8 -7 -7 -7 -7 -6 -6 -6 -6 -6 -5 -5 -5 -5 -5 -5 -4 -4 -4 -3 -3 -3 -2 -2 -1 -1 -1 -------- Run | Yrd Mat Min Mat Min Exi Min Mat Gar Mat Fac Low Low Dat Pro Fac Low Low Zio Pro Fac Ext Cet Arc Hub Fac Arm Lab Res Qua Sec Res Tes Acc Com Ac0 Hostile Shots Fired 860 | . 32 31 40 34 . 23 118 125 96 43 18 9 2 27 . 3 7 . 3 . 11 . . 27 28 39 . 2 2 18 4 . 25 62 31 Missed 286 | . 5 9 8 6 . 4 31 34 26 17 11 6 . 12 . 1 2 . 1 . 5 . . 11 21 27 . . 1 10 3 . 12 18 5 Hits 574 | . 27 22 32 28 . 19 87 91 70 26 7 3 2 15 . 2 5 . 2 . 6 . . 16 7 12 . 2 1 8 1 . 13 44 26 Melee 9 | . . . . . . . 6 2 . . . . . . . . . . . . . . . . . 1 . . . . . . . . . Projectile 565 | . 27 22 32 28 . 19 81 89 70 26 7 3 2 15 . 2 5 . 2 . 6 . . 16 7 11 . 2 1 8 1 . 13 44 26 AOE 15 | . . 10 . . . . . 1 . . . . . . . . . . 3 . . . . . . 1 . . . . . . . . . Critical Strikes 28 | . . 1 . . . . 4 3 4 4 . . . . . . 1 . . . 1 . . 2 . 1 . . . 1 . . 1 5 . Damage Taken 9172 | . 256 574 335 232 . 150 1278 1346 988 406 84 50 92 220 . 43 75 . 129 . 81 . . 375 133 193 . 39 . 181 21 . 292 1125 474 Core 1282 | . 50 143 50 19 . 41 218 177 95 72 18 33 . 63 . 27 31 . 33 . . . . 64 . . . . . 48 . . 42 43 15 Absorbed by Shields 490 | . . . . . . . . . . . . . . . . . . . . . 37 . . . . . . . . . . . . . 453 Reduced by Siege Mode 136 | . . . . . . . . . . . . . . . . . . . . . . . . . . . . . . . . . . 69 67 Regen/Repaired (Parts) 594 | . . . . . . . . . . . . . . . . . . 348 . . . . . . . . . 30 . . . . . 180 36 Core Remaining (%) 75 | 100 . 22 . . . 72 . . 10 . . . . 73 . . . . 89 . . . . 93 . . 100 . . 96 . 100 . . 79 Volleys Fired 374 | . 37 12 36 16 . 9 69 81 56 . . 2 . 1 . . 4 . 1 . 13 . . . . . 1 . . . 1 . 1 22 12 Largest 3 | . 2 2 2 2 . 2 2 2 2 . . 1 . 1 . . 1 . 1 . 1 . . . . . 1 . . . 1 . 1 3 1 Hottest 900 | . 90 90 112 112 . 112 112 66 98 . . 39 . 39 . . 39 . 39 . 48 . . . . . 10 . . . 120 . 900 900 900 Shots Fired 669 | . 73 24 72 32 . 18 128 140 112 . . 2 . 1 . . 4 . 1 . 13 . . . . . 1 . . . 1 . 1 34 12 Gun 420 | . 73 24 72 32 . 18 128 25 30 . . . . . . . . . . . . . . . . . . . . . . . . 18 . Cannon 234 | . . . . . . . . 115 82 . . . . . . . . . . . 13 . . . . . . . . . 1 . 1 10 12 Launcher 14 | . . . . . . . . . . . . 2 . 1 . . 4 . 1 . . . . . . . . . . . . . . 6 . Special 1 | . . . . . . . . . . . . . . . . . . . . . . . . . . . 1 . . . . . . . . Kinetic 319 | . . 1 8 . . . 48 140 87 . . . . . . . . . . . 13 . . . . . . . . . . . . 18 4 Thermal 335 | . 73 23 64 32 . 18 80 . 25 . . . . . . . . . . . . . . . . . . . . . 1 . 1 10 8 Explosive 14 | . . . . . . . . . . . . 2 . 1 . . 4 . 1 . . . . . . . . . . . . . . 6 . Electromagnetic . | . . . . . . . . . . . . . . . . . . . . . . . . . . . . . . . . . . . . Robot Hit Streak 45 | . 14 4 12 14 . 6 11 11 15 . . 2 . . . . 3 . . . 3 . . . . . . . . . . . . 20 45 Robot Miss Streak 5 | . 4 2 5 3 . 3 5 4 4 . . . . . . . . . . . 1 . . . . . . . . . . . . 3 1 Penetration Max 1 | . . . . . . . . . . . . . . . . . . . . . . . . . . . . . . . . . . 1 . Secondary Targets 10 | . 3 1 1 2 . 1 2 . . . . . . . . . . . . . . . . . . . . . . . . . . . . Max Gunslinging Chain 1 | . 1 1 1 1 . 1 1 . . . . . . . . . . . . . . . . . . . . . . . . . . . . Shots Hit Robots 478 | . 50 15 44 21 . 8 85 73 67 28 2 1 2 . . . 2 . 1 4 23 . 2 1 6 2 . 2 1 . 3 . . 27 8 Core Hits 236 | . 24 6 18 12 . 7 37 32 32 3 . 5 1 4 . . 8 . . 3 10 . 2 1 2 2 . 2 . . 1 . 1 17 6 Critical Kills 6 | . . . . . . . . . . 2 . . . . . . . . . 1 1 . . . . . . . . . . . . . 2 Critical Parts Destroyed 17 | . . . . . . . . . . 9 . . . . . . 1 . . 1 5 . . . . . . . . . . . . . 1 Critical Strikes 51 | . 2 . 6 . . . 7 3 6 11 . . . . . . 1 . . 2 7 . . 1 1 . . . . . 1 . . . 3 Burn 15 | . 2 . 6 . . . 7 . . . . . . . . . . . . . . . . . . . . . . . . . . . . Destroy 9 | . . . . . . . . . . . . . . . . . . . . . 6 . . . . . . . . . . . . . 3 Blast 9 | . . . . . . . . 3 6 . . . . . . . . . . . . . . . . . . . . . . . . . . Smash 15 | . . . . . . . . . . 11 . . . . . . 1 . . 2 1 . . . . . . . . . . . . . . Sever 1 | . . . . . . . . . . . . . . . . . . . . . . . . 1 . . . . . . . . . . . Impale 2 | . . . . . . . . . . . . . . . . . . . . . . . . . 1 . . . . . 1 . . . . Melee Attacks 238 | . . . . . . . . . 2 55 10 . 27 5 . . 6 1 12 14 25 . 2 3 12 19 3 10 9 2 9 2 1 9 . Impact 89 | . . . . . . . . . 2 55 10 . . 3 . . 3 . 2 5 9 . . . . . . . . . . . . . . Slashing 74 | . . . . . . . . . . . . . 26 2 . . 3 1 10 9 16 . 2 3 1 1 . . . . . . . . . Piercing 74 | . . . . . . . . . . . . . . . . . . . . . . . . . 11 18 3 10 9 2 9 2 1 9 . Sneak Attacks 28 | . . . . . . . . . . 8 . . 2 . . . 1 . 1 3 3 . 2 . 3 . . 1 . . 1 . . 3 . Combat Hostiles 2 | . . . . . . . . . . 1 . . . . . . . . 1 . . . . . . . . . . . . . . . . Follow-up Attacks 9 | . . . . . . . . . . 8 . . . . . . . . . 1 . . . . . . . . . . . . . . . Damage Inflicted 14428 | . 608 175 589 328 . 168 1424 1587 1338 1934 105 290 97 314 . . 551 . 123 464 1183 . 223 44 483 102 . 137 46 . 207 . 75 1810 23 Guns 4027 | . 599 171 583 305 . 132 1368 201 311 . . . . . . . . . . . . . . . . . . . . . . . . 357 . Cannons 2691 | . . . . . . . . 1386 1019 . . . . . . . . . . . 263 . . . . . . . . . . . . . 23 Explosions 1989 | . . . . . . . 49 . . . . 290 . 314 . . 421 . . . . . . . . . . . . . . . 75 840 . Melee 5525 | . . . . . . . . . . 1934 105 . 97 . . . 130 . 123 464 920 . 223 44 483 102 . 137 46 . 207 . . 510 . Ramming 196 | . 9 4 6 23 . 36 7 . 8 . . . . . . . . . . . . . . . . . . . . . . . . 103 . Kinetic 3824 | . . 7 38 . . . 497 1587 1052 . . . . . . . . . . . 263 . . . . . . . . . . . . 357 23 Thermal 2894 | . 599 164 545 305 . 132 871 . 278 . . . . . . . . . . . . . . . . . . . . . . . . . . Explosive 1989 | . . . . . . . 49 . . . . 290 . 314 . . 421 . . . . . . . . . . . . . . . 75 840 . Electromagnetic . | . . . . . . . . . . . . . . . . . . . . . . . . . . . . . . . . . . . . Impact 3051 | . . . . . . . . . . 1934 105 . . . . . 130 . 123 311 448 . . . . . . . . . . . . . . Slashing 989 | . . . . . . . . . . . . . 97 . . . . . . 153 472 . 223 44 . . . . . . . . . . . Piercing 1485 | . . . . . . . . . . . . . . . . . . . . . . . . . 483 102 . 137 46 . 207 . . 510 . Highest Corruption 4 | . . . . . . . . 3 3 4 4 4 4 4 . . . . . . . . . 2 1 1 1 . . . . . . 2 . Average Corruption 2 | . . . . . . . . 2 3 2 4 4 4 4 . . . . . . . . . 1 1 1 1 . . . . . . 1 . Corruption Purged 2 | . . . . . . . . . . . . . . . . . . . . . . . . . . . . . . . . . . 2 . Corruption Blocked . | . . . . . . . . . . . . . . . . . . . . . . . . . . . . . . . . . . . . Effects 52 | . . . . . . . . 3 15 9 3 2 3 6 . . . . . . . . . . . 1 1 . . . . . . 9 . Message Errors 14 | . . . . . . . . 1 5 2 . . 2 . . . . . . . . . . . . 1 . . . . . . . 3 . Matter Fused 9 | . . . . . . . . . 2 2 1 . . 2 . . . . . . . . . . . . . . . . . . . 2 . Heat Flow Errors 4 | . . . . . . . . 1 . . 2 1 . . . . . . . . . . . . . . . . . . . . . . . Energy Discharges 6 | . . . . . . . . . . 1 . 1 . 2 . . . . . . . . . . . . 1 . . . . . . 1 . Parts Rejected 6 | . . . . . . . . 1 4 . . . 1 . . . . . . . . . . . . . . . . . . . . . . Parts Fused 1 | . . . . . . . . . 1 . . . . . . . . . . . . . . . . . . . . . . . . . . Data Loss (minor) 8 | . . . . . . . . . 1 3 . . . 2 . . . . . . . . . . . . . . . . . . . 2 . Data Loss (major) 2 | . . . . . . . . . 1 . . . . . . . . . . . . . . . . . . . . . . . . 1 . Misfires 1 | . . . . . . . . . 1 . . . . . . . . . . . . . . . . . . . . . . . . . . Alerts 1 | . . . . . . . . . . 1 . . . . . . . . . . . . . . . . . . . . . . . . . Overload Shots . | . . . . . . . . . . . . . . . . . . . . . . . . . . . . . . . . . . . . Overflow Damage 2220 | . . . . . . . . 19 2 906 41 5 . 11 . . 130 . 88 166 279 . . . 327 . . . . . 55 . . 191 . Projectiles 21 | . . . . . . . . 19 2 . . . . . . . . . . . . . . . . . . . . . . . . . . Explosions 89 | . . . . . . . . . . . . 5 . 11 . . . . . . . . . . . . . . . . . . . 73 . Melee 2110 | . . . . . . . . . . 906 41 . . . . . 130 . 88 166 279 . . . 327 . . . . . 55 . . 118 . Knockbacks 31 | . . . . 1 . . . 8 6 9 . . . . . . . . . . 3 . . . . . . . . . . . . 2 2 Impact 15 | . . . . 1 . . . . . 9 . . . . . . . . . . 3 . . . . . . . . . . . . 2 . Kinetic 16 | . . . . . . . . 8 6 . . . . . . . . . . . . . . . . . . . . . . . . . 2 Secondary . | . . . . . . . . . . . . . . . . . . . . . . . . . . . . . . . . . . . . Self-Inflicted Damage 22 | . . . . . . . . . . . . . . . . . . . . . . . . . . . . . . . . . . 22 . Shots 2 | . . . . . . . . . . . . . . . . . . . . . . . . . . . . . . . . . . 2 . Rammed 39 | . 6 1 2 5 . 6 1 . 1 . . . . . . . . . . . . . . . . . . . . . . . . 17 . Targets Rammed 45 | . 7 1 3 7 . 6 2 . 2 . . . . . . . . . . . . . . . . . . . . . . . . 17 . Kicked 2 | . . . . . . . 1 . 1 . . . . . . . . . . . . . . . . . . . . . . . . . . Crushed 4 | . 1 . 1 2 . . . . . . . . . . . . . . . . . . . . . . . . . . . . . . . Highest Temperature 261 | . 219 33 240 210 . 120 204 233 255 17 261 171 32 . . . . . 189 . 25 . . 10 28 . . . . 21 . . 200 200 . Average Temperature 73 | . 90 16 83 79 . 51 62 46 67 9 148 86 21 . . . . . 81 . 14 . . 6 20 . . . . 11 . . 107 100 . Received Heat Transfer 2215 | . 90 111 117 . . . 486 471 594 162 . . . . . . . . . . 28 . . 63 . 54 . 12 . . . . . 27 . Effects 1 | . . . . . . . . . 1 . . . . . . . . . . . . . . . . . . . . . . . . . . Interference 1 | . . . . . . . . . 1 . . . . . . . . . . . . . . . . . . . . . . . . . . Siege Activations 6 | . . . . . . . . . . . . . . . . . . . . . . . . . . . . . . . . . . 4 2 Total Turns 193 | . . . . . . . . . . . . . . . . . . . . . . . . . . . . . . . . . . 61 132 Longest Duration 80 | . . . . . . . . . . . . . . . . . . . . . . . . . . . . . . . . . . 32 80 Martial Activations . | . . . . . . . . . . . . . . . . . . . . . . . . . . . . . . . . . . . . Shielding Activations . | . . . . . . . . . . . . . . . . . . . . . . . . . . . . . . . . . . . . Robots Disrupted . | . . . . . . . . . . . . . . . . . . . . . . . . . . . . . . . . . . . . Combat Hostiles . | . . . . . . . . . . . . . . . . . . . . . . . . . . . . . . . . . . . . Robots Corrupted 13 | . . . . . . . . . . 8 . . . . . . . . . . 5 . . . . . . . . . . . . . . Combat Hostiles 7 | . . . . . . . . . . 5 . . . . . . . . . . 2 . . . . . . . . . . . . . . Parts Fried 24 | . . . . . . . . . . 12 . . . . . . 1 . 6 1 4 . . . . . . . . . . . . . . Impact Corruptions 52 | . . . . . . 1 . . . 28 1 . . . . . 12 . 2 2 6 . . . . . . . . . . . . . . Robots Melted 2 | . . . 2 . . . . . . . . . . . . . . . . . . . . . . . . . . . . . . . . Combat Hostiles 2 | . . . 2 . . . . . . . . . . . . . . . . . . . . . . . . . . . . . . . . Parts Melted 21 | . 7 . 7 2 . . 5 . . . . . . . . . . . . . . . . . . . . . . . . . . . . Heat Transferred 8522 | . 1735 446 1827 777 . 333 2738 . 666 . . . . . . . . . . . . . . . . . . . . . . . . . . Parts Sabotaged 3 | . . . . . . . . . . . . . . . . . . . . . . . . . . 3 . . . . . . . . . Parts Stolen . | . . . . . . . . . . . . . . . . . . . . . . . . . . . . . . . . . . . . Parts Stripped . | . . . . . . . . . . . . . . . . . . . . . . . . . . . . . . . . . . . . Power Chain Reactions . | . . . . . . . . . . . . . . . . . . . . . . . . . . . . . . . . . . . . Alert | -11 -10 -10 -9 -9 -9 -8 -8 -8 -8 -7 -7 -7 -7 -6 -6 -6 -6 -6 -5 -5 -5 -5 -5 -5 -4 -4 -4 -3 -3 -3 -2 -2 -1 -1 -1 ------- Run | Yrd Mat Min Mat Min Exi Min Mat Gar Mat Fac Low Low Dat Pro Fac Low Low Zio Pro Fac Ext Cet Arc Hub Fac Arm Lab Res Qua Sec Res Tes Acc Com Ac0 Maximum Alert Level 5 | . . . . . . . 1 3 2 1 . . . . . . . . . . 1 2 1 2 1 1 . . . . . . 1 5 . Low Security (%) 37 | 100 100 100 100 100 . 100 66 3 . . . . . . 100 . . . . 100 82 5 10 13 . 35 . 100 100 100 100 100 32 . . Level 1 16 | . . . . . . . 33 23 . 100 . . . . . . . . . . 17 74 89 23 100 64 . . . . . . 67 2 . Level 2 9 | . . . . . . . . 37 100 . . . . . . . . . . . . 19 . 62 . . . . . . . . . 3 . Level 3 3 | . . . . . . . . 35 . . . . . . . . . . . . . . . . . . . . . . . . . . . Level 4 . | . . . . . . . . . . . . . . . . . . . . . . . . . . . . . . . . . . 1 . Level 5 32 | . . . . . . . . . . . . . . . . . . . . . . . . . . . . . . . . . . 93 . High Security . | . . . . . . . . . . . . . . . . . . . . . . . . . . . . . . . . . . . . Max Security . | . . . . . . . . . . . . . . . . . . . . . . . . . . . . . . . . . . . . Peak Influence 1192 | . 170 60 198 113 . 62 269 907 587 357 . . . . 100 . . . . 29 344 422 316 576 391 373 . 19 44 170 187 135 320 1192 . Initial 442 | . . 50 . 73 . . . 135 442 256 . . . . 100 . . . . . 6 188 148 96 266 191 . . 9 15 92 105 74 204 . Average 208 | . 57 16 44 36 . 11 112 576 505 261 . . . . 85 . . . . 13 112 332 270 412 255 251 . 8 23 99 149 120 216 432 . Influence Increases 13390 | . 302 50 332 225 . 140 603 912 421 452 50 90 20 225 . 150 140 . 30 55 787 364 218 807 225 309 . 56 70 210 125 40 276 2509 3197 Destroy 0b10 Robot/C 3560 | . 220 40 220 180 . 120 420 440 300 140 20 80 20 80 . . 120 . 20 . 360 160 80 380 . . . . . . . . . 160 . Destroy 0b10 Robot/NC 270 | . 25 . 20 10 . . 15 . 15 35 . . . . . . . . . 20 30 10 10 10 20 10 . 10 . . 5 . . 25 . Destroy Leader 550 | . 42 10 44 20 . 20 72 40 52 52 . 10 . 10 . . 20 . 10 2 24 . . 90 . . . 2 . . . . . 30 . Allied During Kill 585 | . . . . . . . 2 6 . . . . . . . . . . . . 270 170 90 47 . . . . . . . . . . . Successful Hack 152 | . . . . . . . . . . 3 . . . . . . . . . 10 23 8 . 27 17 . . . . . 54 10 . . . Disable Machine 720 | . . . . . . . 60 15 . 30 . . . . . . . . . 15 . . 30 105 . 30 . . 45 30 . 30 30 195 105 Anti-Garrison Action 350 | . . . . . . . . 300 . . . . . . . . . . . . . . . . . . . . . . . . . 50 . Destroy Structure 5643 | . . . 3 . . . 19 111 9 12 . . . . . . . . . 8 20 16 8 58 8 14 . 14 10 . 21 . 186 2034 3092 Partial Spotted 240 | . 15 . . . . . . . . . . . . . . . . . . . 45 . . 30 30 15 . 30 . 45 30 . . . . Lose Combat Pursuer 1320 | . . . 45 15 . . 15 . 45 180 30 . . 135 . 150 . . . . 15 . . 60 150 240 . . 15 135 15 . 60 15 . Influence Decreases 10193 | . 172 180 142 400 15 140 395 213 763 683 185 68 241 65 90 66 110 184 30 42 464 328 314 540 377 330 370 40 57 74 103 102 81 246 2583 Entered New Map 6075 | . . 80 . 117 15 . . 73 465 309 125 38 221 . 60 26 30 184 . . 7 148 224 180 277 200 370 . 7 14 73 82 51 116 2583 Time Decay 3156 | . 172 90 132 283 . 140 245 . 238 334 50 30 20 45 30 30 80 . 30 42 345 140 50 100 100 100 . 40 50 40 30 20 20 130 . Lost Part 450 | . . 10 10 . . . 110 100 60 40 10 . . 20 . 10 . . . . . . . 20 . 30 . . . 20 . . 10 . . Lost Ally 490 | . . . . . . . 40 40 . . . . . . . . . . . . 90 40 40 240 . . . . . . . . . . . Purge Threat 22 | . . . . . . . . . . . . . . . . . . . . . 22 . . . . . . . . . . . . . . Squads Dispatched 35 | . 3 . 1 . . . 4 . 3 9 . . . . 1 . . . . . . . . 9 . 1 . 1 1 1 1 . . . . Investigation 12 | . 1 . 1 . . . . . . 3 . . . . 1 . . . . . . . . 5 . . . 1 . . . . . . . Extermination 6 | . . . . . . . . . . 4 . . . . . . . . . . . . . 1 . . . . 1 . . . . . . Reinforcement 13 | . 2 . . . . . 1 . 2 2 . . . . . . . . . . . . . 3 . 1 . . . 1 1 . . . . Assault 1 | . . . . . . . . . 1 . . . . . . . . . . . . . . . . . . . . . . . . . . Garrison 3 | . . . . . . . 3 . . . . . . . . . . . . . . . . . . . . . . . . . . . . Intercept . | . . . . . . . . . . . . . . . . . . . . . . . . . . . . . . . . . . . . Searches Triggered . | . . . . . . . . . . . . . . . . . . . . . . . . . . . . . . . . . . . . Construction Impeded 1 | . . . . . . . . . . . . . . . . . . . . . . . . . . . . . . . 1 . . . . Haulers Reinforced 2 | . . . . . . . . . . 2 . . . . . . . . . . . . . . . . . . . . . . . . . Active Scanning Responses . | . . . . . . . . . . . . . . . . . . . . . . . . . . . . . . . . . . . . Cargo Convoy Interrupts . | . . . . . . . . . . . . . . . . . . . . . . . . . . . . . . . . . . . . Stealth | -11 -10 -10 -9 -9 -9 -8 -8 -8 -8 -7 -7 -7 -7 -6 -6 -6 -6 -6 -5 -5 -5 -5 -5 -5 -4 -4 -4 -3 -3 -3 -2 -2 -1 -1 -1 --------- Run | Yrd Mat Min Mat Min Exi Min Mat Gar Mat Fac Low Low Dat Pro Fac Low Low Zio Pro Fac Ext Cet Arc Hub Fac Arm Lab Res Qua Sec Res Tes Acc Com Ac0 Distress Signals 48 | . 2 . . 1 . . 5 . 1 1 . . . . . . . . 8 . 2 1 . 4 . 1 . . . 2 . . 1 19 . Communications Jammed . | . . . . . . . . . . . . . . . . . . . . . . . . . . . . . . . . . . . . Distress Signals . | . . . . . . . . . . . . . . . . . . . . . . . . . . . . . . . . . . . . Times Spotted 360 | . 16 6 16 11 . 6 30 23 22 21 5 4 4 19 . 5 6 . 9 1 16 5 . 18 17 34 . 7 4 24 7 . 6 12 6 Peak Tracking Total 18 | . 6 4 4 4 . 3 8 5 7 8 5 4 4 10 . 10 3 . 8 1 3 5 . 18 12 17 . 4 2 13 5 . 6 6 3 Tactical Retreats 38 | . . . 1 1 . . 1 . 2 5 2 . . 5 . 3 . . . . 1 . . 3 2 5 . . 1 3 1 . 1 1 . Traps | -11 -10 -10 -9 -9 -9 -8 -8 -8 -8 -7 -7 -7 -7 -6 -6 -6 -6 -6 -5 -5 -5 -5 -5 -5 -4 -4 -4 -3 -3 -3 -2 -2 -1 -1 -1 ------- Run | Yrd Mat Min Mat Min Exi Min Mat Gar Mat Fac Low Low Dat Pro Fac Low Low Zio Pro Fac Ext Cet Arc Hub Fac Arm Lab Res Qua Sec Res Tes Acc Com Ac0 Traps Triggered 11 | . 1 . 1 . . . . 4 . 2 . . . . . . . . . . 3 . . . . . . . . . . . . . . Indirectly . | . . . . . . . . . . . . . . . . . . . . . . . . . . . . . . . . . . . . Trap Hack Attempts . | . . . . . . . . . . . . . . . . . . . . . . . . . . . . . . . . . . . . Triggered . | . . . . . . . . . . . . . . . . . . . . . . . . . . . . . . . . . . . . Disarmed . | . . . . . . . . . . . . . . . . . . . . . . . . . . . . . . . . . . . . Reprogrammed . | . . . . . . . . . . . . . . . . . . . . . . . . . . . . . . . . . . . . Reused . | . . . . . . . . . . . . . . . . . . . . . . . . . . . . . . . . . . . . Traps Extracted . | . . . . . . . . . . . . . . . . . . . . . . . . . . . . . . . . . . . . Installed . | . . . . . . . . . . . . . . . . . . . . . . . . . . . . . . . . . . . . Triggered . | . . . . . . . . . . . . . . . . . . . . . . . . . . . . . . . . . . . . Most Traps Carried 3 | . . 3 3 . . . . . . . . . . . . . . . . . . . . . . . . . . . . . . . . Machines | -11 -10 -10 -9 -9 -9 -8 -8 -8 -8 -7 -7 -7 -7 -6 -6 -6 -6 -6 -5 -5 -5 -5 -5 -5 -4 -4 -4 -3 -3 -3 -2 -2 -1 -1 -1 ---------- Run | Yrd Mat Min Mat Min Exi Min Mat Gar Mat Fac Low Low Dat Pro Fac Low Low Zio Pro Fac Ext Cet Arc Hub Fac Arm Lab Res Qua Sec Res Tes Acc Com Ac0 Machines Disabled 65 | . . . . . . . 4 9 . 2 . . . . . . . . . 1 1 . 2 7 . 2 2 . 3 2 . 2 2 15 11 Max in Single Turn 5 | . . . . . . . 2 2 . 1 . . . . . . . . . 1 . . . 1 . 1 1 . 1 1 . 1 2 5 4 Garrison Access 1 | . . . . . . . . . . . . . . . . . . . . . . . . . . . . 1 . . . . . . . Garrison Relay 4 | . . . . . . . . 4 . . . . . . . . . . . . . . . . . . . . . . . . . . . Phase Generator 2 | . . . . . . . . 1 . . . . . . . . . . . . . . . . . . . . . . . . . 1 . Network Hub 1 | . . . . . . . . . . . . . . . . . . . . . . . . 1 . . . . . . . . . . . Machines Repaired . | . . . . . . . . . . . . . . . . . . . . . . . . . . . . . . . . . . . . Machines Dismantled 2 | . . . . . . . . . . . . . . . . . . . . . . . . 1 . . 1 . . . . . . . . Machines Sabotaged . | . . . . . . . . . . . . . . . . . . . . . . . . . . . . . . . . . . . . Overloaded Fab Kills . | . . . . . . . . . . . . . . . . . . . . . . . . . . . . . . . . . . . . Hacking | -11 -10 -10 -9 -9 -9 -8 -8 -8 -8 -7 -7 -7 -7 -6 -6 -6 -6 -6 -5 -5 -5 -5 -5 -5 -4 -4 -4 -3 -3 -3 -2 -2 -1 -1 -1 --------- Run | Yrd Mat Min Mat Min Exi Min Mat Gar Mat Fac Low Low Dat Pro Fac Low Low Zio Pro Fac Ext Cet Arc Hub Fac Arm Lab Res Qua Sec Res Tes Acc Com Ac0 Machines Accessed 59 | . . . . 1 . . 1 3 2 8 . . 3 . 2 1 . . . 2 11 1 . 5 3 2 1 3 . 3 2 2 3 . . Terminals 41 | . . . . . . . . 3 2 3 . . . . . . . . . 2 11 1 . 5 2 2 . 1 . 3 2 1 3 . . Fabricators 4 | . . . . . . . . . . 3 . . . . 1 . . . . . . . . . . . . . . . . . . . . Repair Stations 2 | . . . . . . . . . . . . . . . . . . . . . . . . . 1 . . 1 . . . . . . . Recycling Units 1 | . . . . . . . . . . . . . . . 1 . . . . . . . . . . . . . . . . . . . . Scanalyzers 2 | . . . . . . . . . . 1 . . . . . . . . . . . . . . . . . . . . . 1 . . . Garrison Access 3 | . . . . . . . 1 . . 1 . . . . . . . . . . . . . . . . . 1 . . . . . . . Total Hacks 164 | . . . . 1 . . 1 5 3 21 . . 27 . 6 1 . . . 7 22 1 . 21 16 2 4 3 . 3 6 6 8 . . Successful 95 | . . . . 1 . . 1 1 2 11 . . 27 . 2 1 . . . 3 13 1 . 10 3 1 4 3 . 3 3 2 3 . . Failed 68 | . . . . . . . . 4 1 9 . . . . 4 . . . . 4 9 . . 11 13 1 . . . . 3 4 5 . . Catastrophic 10 | . . . . . . . . . . . . . . . 1 . . . . . . . . 1 6 . . . . . 1 1 . . . Database Lockouts 1 | . . . . . . . . . . 1 . . . . . . . . . . . . . . . . . . . . . . . . . Manual 59 | . . . . . . . . . 3 6 . . . . . . . . . 3 5 1 . 21 12 2 . 1 . . 2 3 . . . Terminals 100 | . . . . . . . . 5 3 6 . . . . . . . . . 7 22 1 . 21 12 2 . 1 . 3 6 3 8 . . Fabricators 13 | . . . . . . . . . . 10 . . . . 3 . . . . . . . . . . . . . . . . . . . . Repair Stations 5 | . . . . . . . . . . . . . . . . . . . . . . . . . 4 . . 1 . . . . . . . Recycling Units 3 | . . . . . . . . . . . . . . . 3 . . . . . . . . . . . . . . . . . . . . Scanalyzers 7 | . . . . . . . . . . 4 . . . . . . . . . . . . . . . . . . . . . 3 . . . Garrison Access 3 | . . . . . . . 1 . . 1 . . . . . . . . . . . . . . . . . 1 . . . . . . . Terminal Hacks 66 | . . . . 1 . . . 1 2 2 . . 27 . . 1 . . . 2 10 1 . 3 2 . 4 1 . 3 3 . 3 . . Record 9 | . . . . . . . . . . . . . 6 . . . . . . . . . . . . . 3 . . . . . . . . Part Schematic 12 | . . . . . . . . . . . . . 12 . . . . . . . . . . . . . . . . . . . . . . Robot Schematic 6 | . . . . . . . . . . . . . 6 . . . . . . . . . . . . . . . . . . . . . . Prototype ID Bank 3 | . . . . . . . . . . . . . 3 . . . . . . . . . . . . . . . . . . . . . . Open Door 17 | . . . . 1 . . . 1 . . . . . . . 1 . . . . 7 1 . . . . . . . 3 . . 3 . . Level Access Points 2 | . . . . . . . . . . . . . . . . . . . . . . . . 1 . . . . . . 1 . . . . Branch Access Points 3 | . . . . . . . . . . . . . . . . . . . . . . . . . 1 . . 1 . . 1 . . . . Alert Level 4 | . . . . . . . . . . 1 . . . . . . . . . 1 2 . . . . . . . . . . . . . . Unreport Threat 1 | . . . . . . . . . . . . . . . . . . . . . 1 . . . . . . . . . . . . . . Locate Traps 1 | . . . . . . . . . . . . . . . . . . . . 1 . . . . . . . . . . . . . . . Dispatch Records 2 | . . . . . . . . . . 1 . . . . . . . . . . . . . 1 . . . . . . . . . . . Recall Investigation 1 | . . . . . . . . . . . . . . . . . . . . . . . . 1 . . . . . . . . . . . Zone Layout 4 | . . . . . . . . . 2 . . . . . . . . . . . . . . . 1 . . . . . 1 . . . . Release Object 1 | . . . . . . . . . . . . . . . . . . . . . . . . . . . 1 . . . . . . . . Fabricator Hacks 5 | . . . . . . . . . . 4 . . . . 1 . . . . . . . . . . . . . . . . . . . . Network Status 1 | . . . . . . . . . . 1 . . . . . . . . . . . . . . . . . . . . . . . . . Load Schematic 3 | . . . . . . . . . . 2 . . . . 1 . . . . . . . . . . . . . . . . . . . . Build 1 | . . . . . . . . . . 1 . . . . . . . . . . . . . . . . . . . . . . . . . Repair Station Hacks 1 | . . . . . . . . . . . . . . . . . . . . . . . . . 1 . . . . . . . . . . Refit 1 | . . . . . . . . . . . . . . . . . . . . . . . . . 1 . . . . . . . . . . Recycling Unit Hacks 1 | . . . . . . . . . . . . . . . 1 . . . . . . . . . . . . . . . . . . . . Retrieve Components 1 | . . . . . . . . . . . . . . . 1 . . . . . . . . . . . . . . . . . . . . Scanalyzer 4 | . . . . . . . . . . 3 . . . . . . . . . . . . . . . . . . . . . 1 . . . Insert Component 1 | . . . . . . . . . . 1 . . . . . . . . . . . . . . . . . . . . . . . . . Analyze 1 | . . . . . . . . . . 1 . . . . . . . . . . . . . . . . . . . . . . . . . Retrieve Study 2 | . . . . . . . . . . 1 . . . . . . . . . . . . . . . . . . . . . 1 . . . Garrison Access Hacks 2 | . . . . . . . 1 . . . . . . . . . . . . . . . . . . . . 1 . . . . . . . Unlock Access 1 | . . . . . . . 1 . . . . . . . . . . . . . . . . . . . . . . . . . . . . Seal Access 1 | . . . . . . . . . . . . . . . . . . . . . . . . . . . . 1 . . . . . . . Unauthorized Hacks 16 | . . . . . . . . . . 2 . . . . . . . . . 1 3 . . 7 . 1 . 1 . . . 1 . . . Terminals 14 | . . . . . . . . . . 1 . . . . . . . . . 1 3 . . 7 . 1 . . . . . 1 . . . Assimilate 2 | . . . . . . . . . . . . . . . . . . . . . 1 . . . . 1 . . . . . . . . . Botnet 7 | . . . . . . . . . . 1 . . . . . . . . . 1 2 . . 2 . . . . . . . 1 . . . Disrupt 1 | . . . . . . . . . . . . . . . . . . . . . . . . 1 . . . . . . . . . . . Sabotage 4 | . . . . . . . . . . . . . . . . . . . . . . . . 4 . . . . . . . . . . . Fabricators 1 | . . . . . . . . . . 1 . . . . . . . . . . . . . . . . . . . . . . . . . Prioritize 1 | . . . . . . . . . . 1 . . . . . . . . . . . . . . . . . . . . . . . . . Repair Stations 1 | . . . . . . . . . . . . . . . . . . . . . . . . . . . . 1 . . . . . . . Patch 1 | . . . . . . . . . . . . . . . . . . . . . . . . . . . . 1 . . . . . . . Recycling Units . | . . . . . . . . . . . . . . . . . . . . . . . . . . . . . . . . . . . . Scanalyzers . | . . . . . . . . . . . . . . . . . . . . . . . . . . . . . . . . . . . . Garrison Access . | . . . . . . . . . . . . . . . . . . . . . . . . . . . . . . . . . . . . Data Cores Recovered 4 | . . . . . . . . . . . . . . . . . . . . . . . . . 1 2 . . . . 1 . . . . Used 1 | . . . . . . . . . . . . . . . . . . . . . . . . . . . . . . . 1 . . . . Hacking Detections 26 | . . . . . . . . 3 1 6 . . . . 1 . . . . 1 5 . . 2 2 1 . . . . 2 1 1 . . Full Trace Events 3 | . . . . . . . . . . 2 . . . . 1 . . . . . . . . . . . . . . . . . . . . Feedback Events 1 | . . . . . . . . . . 1 . . . . . . . . . . . . . . . . . . . . . . . . . Corruption 1 | . . . . . . . . . . 1 . . . . . . . . . . . . . . . . . . . . . . . . . Feedback Blocked . | . . . . . . . . . . . . . . . . . . . . . . . . . . . . . . . . . . . . Robot Schematics Acquired 9 | . . . . . . . . . . . . . 6 . . . . 3 . . . . . . . . . . . . . . . . . Robots Built . | . . . . . . . . . . . . . . . . . . . . . . . . . . . . . . . . . . . . Authchips . | . . . . . . . . . . . . . . . . . . . . . . . . . . . . . . . . . . . . Time . | . . . . . . . . . . . . . . . . . . . . . . . . . . . . . . . . . . . . Total Robot Build Rating . | . . . . . . . . . . . . . . . . . . . . . . . . . . . . . . . . . . . . Part Schematics Acquired 28 | . . . . . . . . . . 1 . . 12 . . . . 15 . . . . . . . . . . . . . . . . . Parts Built 1 | . . . . . . . . . . 1 . . . . . . . . . . . . . . . . . . . . . . . . . Authchips . | . . . . . . . . . . . . . . . . . . . . . . . . . . . . . . . . . . . . Time 67 | . . . . . . . . . . 67 . . . . . . . . . . . . . . . . . . . . . . . . . Total Part Build Rating 4 | . . . . . . . . . . 4 . . . . . . . . . . . . . . . . . . . . . . . . . Part Studies Acquired 2 | . . . . . . . . . . 1 . . . . . . . . . . . . . . . . . . . . . 1 . . . Parts Repaired . | . . . . . . . . . . . . . . . . . . . . . . . . . . . . . . . . . . . . Time . | . . . . . . . . . . . . . . . . . . . . . . . . . . . . . . . . . . . . Parts Recycled . | . . . . . . . . . . . . . . . . . . . . . . . . . . . . . . . . . . . . Recycled Matter . | . . . . . . . . . . . . . . . . . . . . . . . . . . . . . . . . . . . . Retrieved Matter . | . . . . . . . . . . . . . . . . . . . . . . . . . . . . . . . . . . . . Retrieved Components 2 | . . . . . . . . . . . . . . . 2 . . . . . . . . . . . . . . . . . . . . Parts Scanalyzed 1 | . . . . . . . . . . 1 . . . . . . . . . . . . . . . . . . . . . . . . . Part Schematics Acquired 1 | . . . . . . . . . . 1 . . . . . . . . . . . . . . . . . . . . . . . . . Parts Damaged . | . . . . . . . . . . . . . . . . . . . . . . . . . . . . . . . . . . . . Bothacking | -11 -10 -10 -9 -9 -9 -8 -8 -8 -8 -7 -7 -7 -7 -6 -6 -6 -6 -6 -5 -5 -5 -5 -5 -5 -4 -4 -4 -3 -3 -3 -2 -2 -1 -1 -1 ------------ Run | Yrd Mat Min Mat Min Exi Min Mat Gar Mat Fac Low Low Dat Pro Fac Low Low Zio Pro Fac Ext Cet Arc Hub Fac Arm Lab Res Qua Sec Res Tes Acc Com Ac0 Used RIF Installer . | . . . . . . . . . . . . . . . . . . . . . . . . . . . . . . . . . . . . Robots Hacked 2 | . . . . . . . . . . . . . 1 . . . . . . . . . . . . . 1 . . . . . . . . Non-combat . | . . . . . . . . . . . . . . . . . . . . . . . . . . . . . . . . . . . . Combat 1 | . . . . . . . . . . . . . 1 . . . . . . . . . . . . . . . . . . . . . . Robot Hacks Applied 1 | . . . . . . . . . . . . . 1 . . . . . . . . . . . . . . . . . . . . . . parse_system 1 | . . . . . . . . . . . . . 1 . . . . . . . . . . . . . . . . . . . . . . Manual 1 | . . . . . . . . . . . . . . . . . . . . . . . . . . . 1 . . . . . . . . Relay Couplers Released 17 | . . . . . . . . 17 . . . . . . . . . . . . . . . . . . . . . . . . . . . Machine Destruction 17 | . . . . . . . . 17 . . . . . . . . . . . . . . . . . . . . . . . . . . . Fabnet Peak Effective % . | . . . . . . . . . . . . . . . . . . . . . . . . . . . . . . . . . . . . Robots Rewired 15 | . . . . . . . . 2 . . . . . . . . . . . . 13 . . . . . . . . . . . . . . Allies Hacked . | . . . . . . . . . . . . . . . . . . . . . . . . . . . . . . . . . . . . Hacks Repelled . | . . . . . . . . . . . . . . . . . . . . . . . . . . . . . . . . . . . . Allies | -11 -10 -10 -9 -9 -9 -8 -8 -8 -8 -7 -7 -7 -7 -6 -6 -6 -6 -6 -5 -5 -5 -5 -5 -5 -4 -4 -4 -3 -3 -3 -2 -2 -1 -1 -1 -------- Run | Yrd Mat Min Mat Min Exi Min Mat Gar Mat Fac Low Low Dat Pro Fac Low Low Zio Pro Fac Ext Cet Arc Hub Fac Arm Lab Res Qua Sec Res Tes Acc Com Ac0 Total Allies 30 | . . . . . . . 1 2 . . . . . . . . . . . . 22 5 . . . . . . . . . . . . . Largest Group 19 | . . . . . . . 1 2 . . . . . . . . . . . . 17 19 19 15 . . . . . . . . . . . Highest-Rated Group 1033 | . . . . . . . 15 62 . . . . . . . . . . . . 653 1033 1033 779 . . . . . . . . . . . Highest-Rated Ally 159 | . . . . . . . 15 31 . . . . . . . . . . . . 159 159 159 96 . . . . . . . . . . . Initial Warlord ECA Mod 8 | . . . . . . . . . 8 7 7 7 7 6 6 6 6 6 5 5 5 5 5 5 4 4 4 3 3 3 2 2 1 1 1 Total Orders 14 | . . . . . . . 1 . . . . . . . . . . . . . . 13 . . . . . . . . . . . . . STAY 4 | . . . . . . . . . . . . . . . . . . . . . . 4 . . . . . . . . . . . . . ROAM 4 | . . . . . . . . . . . . . . . . . . . . . . 4 . . . . . . . . . . . . . FOLLOW 5 | . . . . . . . . . . . . . . . . . . . . . . 5 . . . . . . . . . . . . . RETURN 1 | . . . . . . . 1 . . . . . . . . . . . . . . . . . . . . . . . . . . . . Ally Attacks 326 | . . . . . . . 9 8 . . . . . . . . . . . . 100 46 32 131 . . . . . . . . . . . Total Damage 7036 | . . . . . . . 56 129 . . . . . . . . . . . . 2140 912 509 3290 . . . . . . . . . . . Kills 55 | . . . . . . . 1 2 . . . . . . . . . . . . 13 10 5 24 . . . . . . . . . . . Allies Corrupted . | . . . . . . . . . . . . . . . . . . . . . . . . . . . . . . . . . . . . Allies Melted 1 | . . . . . . . . . . . . . . . . . . . . . . . . 1 . . . . . . . . . . . Intel | -11 -10 -10 -9 -9 -9 -8 -8 -8 -8 -7 -7 -7 -7 -6 -6 -6 -6 -6 -5 -5 -5 -5 -5 -5 -4 -4 -4 -3 -3 -3 -2 -2 -1 -1 -1 ------- Run | Yrd Mat Min Mat Min Exi Min Mat Gar Mat Fac Low Low Dat Pro Fac Low Low Zio Pro Fac Ext Cet Arc Hub Fac Arm Lab Res Qua Sec Res Tes Acc Com Ac0 Active Infowar (turns) 11571 | . . . . . . . 76 1143 497 756 114 72 133 318 76 69 174 211 255 112 897 284 102 206 205 211 163 117 112 86 79 46 49 4770 238 Optics 11564 | . . . . . . . 76 1143 497 756 114 72 133 318 76 69 174 211 255 112 890 284 102 206 205 211 163 117 112 86 79 46 49 4770 238 Sensors 5943 | . . . . . . . . . . 707 114 72 133 318 76 69 174 211 255 112 897 284 102 202 147 168 115 117 110 23 . 39 49 1449 . Terrain 1968 | . . . . . . . . . . . . . . . . . . . . 112 897 284 102 202 3 119 71 . . 31 79 46 22 . . Robot Analysis Total 154 | . . . . . . . . . . . . . 154 . . . . . . . . . . . . . . . . . . . . . . Derelict Logs Recovered 4 | . . 1 . . . . . . . . . . . 1 . . . . 2 . . . . . . . . . . . . . . . . Drone Launches 9 | . . . . . . . 9 . . . . . . . . . . . . . . . . . . . . . . . . . . . . Drone Recoveries 7 | . . . . . . . 7 . . . . . . . . . . . . . . . . . . . . . . . . . . . . Exploration | -11 -10 -10 -9 -9 -9 -8 -8 -8 -8 -7 -7 -7 -7 -6 -6 -6 -6 -6 -5 -5 -5 -5 -5 -5 -4 -4 -4 -3 -3 -3 -2 -2 -1 -1 -1 ------------- Run | Yrd Mat Min Mat Min Exi Min Mat Gar Mat Fac Low Low Dat Pro Fac Low Low Zio Pro Fac Ext Cet Arc Hub Fac Arm Lab Res Qua Sec Res Tes Acc Com Ac0 Turns Passed 15515 | 24 477 407 492 723 297 839 746 1143 512 756 114 72 133 318 76 69 174 211 255 112 897 284 102 206 205 211 163 117 112 86 79 46 49 4770 238 Spaces Moved 14581 | 30 292 220 219 405 186 500 306 582 268 1698 312 239 121 543 219 215 493 770 415 263 989 224 53 307 196 319 286 286 322 312 189 169 146 2445 42 Core 190 | 30 160 . . . . . . . . . . . . . . . . . . . . . . . . . . . . . . . . . . Treads 4429 | . 132 220 207 405 186 500 210 87 54 . . . . . . . . . . . . . . . . . . . . . . . . 2386 42 Legs 703 | . . . . . . . 95 495 113 . . . . . . . . . . . . . . . . . . . . . . . . . . Wheels 12 | . . . 12 . . . . . . . . . . . . . . . . . . . . . . . . . . . . . . . . Hover . | . . . . . . . . . . . . . . . . . . . . . . . . . . . . . . . . . . . . Flight 9247 | . . . . . . . 1 . 101 1698 312 239 121 543 219 215 493 770 415 263 989 224 53 307 196 319 286 286 322 312 189 169 146 59 . Fastest Speed 12 | 50 50 160 80 160 160 160 120 120 28 20 27 27 20 23 27 27 27 27 19 27 19 25 25 23 18 23 23 18 25 15 12 19 21 21 167 Average Speed 74 | 50 99 160 155 160 160 160 158 146 96 28 27 27 26 30 27 30 28 27 25 27 26 25 25 25 28 24 34 24 25 22 21 21 21 163 167 Slowest Speed 330 | 50 160 160 160 160 160 160 330 260 240 95 27 27 27 31 27 31 31 27 27 27 27 25 25 28 103 26 93 90 25 25 22 22 21 170 167 Overloaded Moves 312 | . . . . . . . . . . 1 . . 21 3 . . . . 62 . 6 . . . 9 88 . 17 . 66 19 20 . . . Propulsion Burnouts . | . . . . . . . . . . . . . . . . . . . . . . . . . . . . . . . . . . . . Robots Hopped 38 | . . . . . . . . . 1 10 . . . . 3 . . . . 2 7 . . 3 3 1 . . 1 5 2 . . . . Potential Cave-ins 2 | . . . . . . . . . . . . . . . . . . . . . . . . . . . . . . . . . . 2 . Cave-ins Triggered . | . . . . . . . . . . . . . . . . . . . . . . . . . . . . . . . . . . . . Teleports 2 | . . . . . . . . . . . . . . . . . . . . . . . . . . . . . . . . . . 1 1 Exploration Rate (%) 46 | 3 45 49 29 74 57 96 27 85 24 40 45 31 82 73 5 60 72 80 64 8 89 73 78 37 11 30 99 13 44 36 11 26 7 73 4 Regions Visited 35 Branch Regions 23 Pre-discovered Areas 29 | . . 1 . . . . . . . . . 1 25 . . . . 2 . . . . . . . . . . . . . . . . . Known Exits Taken 25 | . . . . . . . 1 . . 1 1 1 1 1 1 1 1 1 1 1 1 1 1 1 1 1 1 1 1 1 1 1 1 . . Unknown Exits Taken 9 | 1 1 1 1 1 1 1 . . 1 . . . . . . . . . . . . . . . . . . . . . . . . 1 . Scrap Searched 25 | . . . . 3 . 3 . . . . 6 6 . 2 . . 1 1 3 . . . . . . . . . . . . . . . . Spaces Dug 273 | . . . . . . . . . 2 12 5 14 . 22 . . 41 . 10 4 8 . . 2 4 7 . 7 5 . 6 . 1 123 . Terrain Destroyed 5142 | . . . . . . . 17 138 7 12 5 33 . 22 . . 53 . 23 4 9 . . 2 4 7 . 7 5 . 7 . 240 1948 2599 Melee 81 | . . . . . . . . . 2 12 5 . . 5 . . 2 . 10 4 8 . . 2 4 7 . 7 5 . 6 . 1 1 . Projectile 4630 | . . . . . . . . . 5 . . . . . . . . . . . 1 . . . . . . . . . 1 . 214 1818 2591 AOE 423 | . . . . . . . 17 138 . . . 33 . 17 . . 51 . 13 . . . . . . . . . . . . . 25 129 . Terrain Rammed . | . . . . . . . . . . . . . . . . . . . . . . . . . . . . . . . . . . . . Walls Destroyed . | . . . . . . . . . . . . . . . . . . . . . . . . . . . . . . . . . . . . Machines Disabled . | . . . . . . . . . . . . . . . . . . . . . . . . . . . . . . . . . . . . Actions | -11 -10 -10 -9 -9 -9 -8 -8 -8 -8 -7 -7 -7 -7 -6 -6 -6 -6 -6 -5 -5 -5 -5 -5 -5 -4 -4 -4 -3 -3 -3 -2 -2 -1 -1 -1 --------- Run | Yrd Mat Min Mat Min Exi Min Mat Gar Mat Fac Low Low Dat Pro Fac Low Low Zio Pro Fac Ext Cet Arc Hub Fac Arm Lab Res Qua Sec Res Tes Acc Com Ac0 Total 18005 | 36 401 252 300 446 185 519 440 742 401 1883 325 244 176 683 232 217 509 770 540 278 1562 452 136 425 322 421 336 320 338 317 209 178 154 3124 132 Wait 2135 | . 52 11 21 1 . . 23 19 33 101 . . 20 127 12 . . . 110 2 391 225 81 102 116 74 15 15 . 1 8 1 1 512 61 Move 14470 | 29 291 219 218 404 185 499 306 581 265 1677 311 238 120 542 212 214 492 769 414 258 974 223 52 300 189 316 285 285 319 301 184 168 145 2444 41 Hop 38 | . . . . . . . . . 1 10 . . . . 3 . . . . 2 7 . . 3 3 1 . . 1 5 2 . . . . Pick Up 105 | 3 8 3 4 5 . 3 10 3 10 4 2 1 3 2 1 1 1 . 1 1 3 1 . 2 1 2 1 2 3 1 1 . . 14 8 Fast Attach 118 | 4 2 . 5 3 . . 11 9 12 7 . . 1 . 1 . 2 . . 1 2 . . 2 . 5 7 2 1 2 2 2 2 32 1 Attach 60 | . 2 3 2 . . . 10 3 1 4 1 . . 2 2 2 . . . 1 2 . . 2 . 3 2 1 1 2 2 . 1 9 2 Detach 46 | . . . 2 1 . . 5 . 1 1 . . . . 1 . . . . . 3 . . 2 . 2 5 1 1 . . 2 1 17 1 Swap 60 | . . . 3 1 . 1 1 1 8 9 1 2 2 4 . . 6 . 2 1 4 1 1 2 1 . 1 . 1 1 . 1 . 4 1 Drop 118 | . 2 3 6 8 . 1 3 2 10 8 1 1 3 . . . 1 . 1 . 3 2 . 4 1 . 7 4 2 2 . 2 2 34 5 Fire 374 | . 37 12 36 16 . 9 69 81 56 . . 2 . 1 . . 4 . 1 . 13 . . . . . 1 . . . 1 . 1 22 12 Melee 220 | . . . . . . . . . 2 47 9 . 27 5 . . 3 1 11 12 24 . 2 3 11 18 3 10 9 2 9 2 1 9 . Ram . | . . . . . . . . . . . . . . . . . . . . . . . . . . . . . . . . . . . . Kick 2 | . . . . . . . 1 . 1 . . . . . . . . . . . . . . . . . . . . . . . . . . Crush 43 | . 7 1 3 7 . 6 1 . 1 . . . . . . . . . . . . . . . . . . . . . . . . 17 . Escape Stasis 80 | . . . . . . . . 20 . 15 . . . . . . . . . . 45 . . . . . . . . . . . . . . Rewire 124 | . . . . . . . . 23 . . . . . . . . . . . . 91 . . . . . . . . . . . . 10 . Trap . | . . . . . . . . . . . . . . . . . . . . . . . . . . . . . . . . . . . . Miscellaneous 12 | . . . . . . . . . . . . . . . . . . . . . . . . 3 . . 9 . . . . . . . . Route ------- -11/Scrapyard -10/Materials (discovered 2 exits: [*Mat] / [*Min]) -10/Mines -9/Materials -9/Mines (discovered 3 exits: *Mat x2 / [*Exi]) -9/Exiles -8/Mines (discovered 2 exits: *Mat x2) -8/Materials -8/Garrison (discovered 3 exits: *Mat x3) -8/Materials -7/Factory -7/Lower Caves -7/Lower Caves -7/Data Miner -6/Proximity Caves -6/Factory -6/Lower Caves -6/Lower Caves -6/Zion -5/Proximity Caves -5/Factory -5/Extension (discovered 3 exits: *Fac x2 / *Cet) -5/Cetus (discovered 2 exits: *Fac / *Arc) -5/Archives (discovered 3 exits: *Fac / *Hub x2) -5/Hub_04(d) (discovered 4 exits: *Fac x4) -4/Factory (discovered 3 exits: Upp x2 / *Arm) -4/Armory (discovered 2 exits: Res / *Lab) -4/Lab -3/Research (discovered 2 exits: *Qua x2) -3/Quarantine (discovered 3 exits: *Res / *Sec / [*Frg]) -3/Section 7 -2/Research (discovered 5 exits: Acc x3 / *Tes x2) -2/Testing -1/Access -1/Command (discovered 3 exits: [*Sur x2] / [*Ac0]) -1/Access_0 0b11 Command History --------- Turn | Location | Event 14 | -11/Scrapyard | Discovered new exit (range 16) 25 | -11/Scrapyard | Entered Materials 44 | -10/Materials | Discovered new exit (range 7) 303 | -10/Materials | Build established: Mutant 403 | -10/Materials | Destroyed 7 combat bots 435 | -10/Materials | Discovered new exit (range 14) 502 | -10/Materials | Entered Mines 503 | -10/Mines | Learned location of Storage (-9) 625 | -10/Mines | Learned Materials interactive machine intel 702 | -10/Mines | Found a hidden stash of uninstalled traps 873 | -10/Mines | Assembled infested the area 878 | -10/Mines | Assisted by a Guerilla fighting off Assembled 882 | -10/Mines | Discovered new exit (range 13) 884 | -10/Mines | Core integrity fell below 50% 909 | -10/Mines | Entered Materials 909 | -9/Materials | Evolved 2 slots: Propulsion x1, Utility x1 910 | -9/Materials | Loaded intel: 18 interactive machine locations 1352 | -9/Materials | Build established: Scavenger-Mutant 1384 | -9/Materials | Discovered new exit (range 9) 1401 | -9/Materials | Entered Mines 1452 | -9/Mines | A weapon hastily lodged in a ceiling crevice suddenly fell to the ground 1598 | -9/Mines | Found the Drone Emporium 1607 | -9/Mines | Found Prototype Device 1607 | -9/Mines | Identified Splice Drone Bay 1967 | -9/Mines | Discovered new exit (range 15) 2034 | -9/Mines | Discovered new exit (range 10) 2117 | -9/Mines | Deemed a non-threat by the Exiles lab entrance 2117 | -9/Mines | Discovered new exit (range 5) 2124 | -9/Mines | Entered Exiles 2124 | -9/Exiles | Found Exiles lab abandoned 2401 | -9/Exiles | Discovered new exit (range 12) 2421 | -9/Exiles | Entered Mines 2505 | -8/Mines | Discovered new exit (range 6) 2734 | -8/Mines | Discovered new exit (range 10) 3260 | -8/Mines | Entered Materials 3260 | -8/Materials | Evolved 2 slots: Propulsion x1, Utility x1 3298 | -8/Materials | Garrison activated, responded to threat 3840 | -8/Materials | Lost 9 parts (1p2n2u4w) 4006 | -8/Materials | Identified exit to Garrison 4006 | -8/Materials | Entered Garrison 4026 | -8/Garrison | Triggered checkpoint 4058 | -8/Garrison | Garrison Relay disabled 4129 | -8/Garrison | Phase Generator disabled 4212 | -8/Garrison | Triggered checkpoint 4226 | -8/Garrison | Triggered checkpoint 4294 | -8/Garrison | Discovered new exit (range 12) 4328 | -8/Garrison | Triggered checkpoint 4385 | -8/Garrison | Garrison Relay disabled 4565 | -8/Garrison | Lost 4 parts (1p2n1w) 4603 | -8/Garrison | Discovered new exit (range 11) 4623 | -8/Garrison | Core integrity fell below 50% 4653 | -8/Garrison | Lost 3 parts (2n1w) 4726 | -8/Garrison | Triggered checkpoint 4740 | -8/Garrison | Garrison Relay disabled 4960 | -8/Garrison | Triggered checkpoint 5036 | -8/Garrison | Triggered checkpoint 5090 | -8/Garrison | Garrison Relay disabled 5109 | -8/Garrison | Discovered new exit (range 19) 5149 | -8/Garrison | Entered Materials 5246 | -8/Materials | Core integrity fell below 20% 5549 | -8/Materials | First assault squad dispatched 5632 | -8/Materials | Discovered new exit (range 22) 5661 | -8/Materials | Entered Factory 5661 | -7/Factory | Evolved 2 slots: Utility x2 5978 | -7/Factory | Build established: Hacker-Scout 6129 | -7/Factory | Central database locked down 6209 | -7/Factory | Fabricated Cld. VTOL Module (x1) 6310 | -7/Factory | Discovered new exit (range 15) 6417 | -7/Factory | Identified exit to Lower Caves 6417 | -7/Factory | Entered Lower Caves 6529 | -7/Lower Caves | Discovered new exit (range 7) 6530 | -7/Lower Caves | Identified exit to Lower Caves 6531 | -7/Lower Caves | Entered another Lower Caves area 6542 | -7/Lower Caves | Met a Warlord Commander 6543 | -7/Lower Caves | Learned location of Warlord (-4) 6544 | -7/Lower Caves | Warlord Commander delivered Encrypted Comm Array 6600 | -7/Lower Caves | Discovered new exit (range 9) 6602 | -7/Lower Caves | Identified exit to Data Miner 6603 | -7/Lower Caves | Entered Data Miner 6603 | -7/Data Miner | Discovered new exit (range 6) 6608 | -7/Data Miner | Met Data Miner 6613 | -7/Data Miner | Learned location of Section 7 (-3) 6613 | -7/Data Miner | Acquired the access code to Warlord's prototype stash 6621 | -7/Data Miner | Received God Mode back door access code from Data Miner 6627 | -7/Data Miner | Destroyed Data Miner 6630 | -7/Data Miner | Found Ghost Barrier 6632 | -7/Data Miner | Found Deep Network Scanner 6634 | -7/Data Miner | Found Quantum Router 6635 | -7/Data Miner | Interfaced with the Data Conduit 6736 | -7/Data Miner | Identified exit to Proximity Caves 6736 | -7/Data Miner | Entered Proximity Caves 6788 | -6/Proximity Caves | Spotted B-75 Beast 6973 | -6/Proximity Caves | Learned Factory security intel 7052 | -6/Proximity Caves | Discovered new exit (range 5) 7053 | -6/Proximity Caves | Identified exit to Factory 7054 | -6/Proximity Caves | Entered Factory 7054 | -6/Factory | Evolved 2 slots: Propulsion x1, Utility x1 7056 | -6/Factory | Loaded intel: 244 machine locations 7059 | -6/Factory | Discovered new exit (range 19) 7064 | -6/Factory | Identified exit to Lower Caves 7130 | -6/Factory | Entered Lower Caves 7132 | -6/Lower Caves | Attracted the attention of an 0b10 outpost 7138 | -6/Lower Caves | Spotted B-75 Beast 7161 | -6/Lower Caves | Found Prototype Device 7198 | -6/Lower Caves | Discovered new exit (range 5) 7199 | -6/Lower Caves | Identified exit to Lower Caves 7199 | -6/Lower Caves | Entered another Lower Caves area 7370 | -6/Lower Caves | Discovered new exit (range 13) 7373 | -6/Lower Caves | Identified exit to Zion 7373 | -6/Lower Caves | Entered Zion 7381 | -6/Zion | Given the Hacking Drone Bay 7398 | -6/Zion | Discovered new exit (range 18) 7436 | -6/Zion | Learned Factory recycling unit intel 7546 | -6/Zion | Visited the Megawrench Repair Shop 7546 | -6/Zion | Megawrench repaired 12 parts 7584 | -6/Zion | Identified exit to Proximity Caves 7584 | -6/Zion | Entered Proximity Caves 7596 | -5/Proximity Caves | Identified exit to Factory 7693 | -5/Proximity Caves | Learned Factory interactive machine intel 7839 | -5/Proximity Caves | Entered Factory 7839 | -5/Factory | Evolved 2 slots: Utility x2 7840 | -5/Factory | Loaded intel: 280 machine locations 7841 | -5/Factory | Loaded intel: 54 interactive machine locations 7842 | -5/Factory | Loaded intel: 8 recycling unit locations 7854 | -5/Factory | Discovered new exit (range 8) 7893 | -5/Factory | Identified exit to Extension 7951 | -5/Factory | Entered Extension 7952 | -5/Extension | Loaded intel: 30 machine locations 8012 | -5/Extension | Rescued A7 8043 | -5/Extension | Rescued a captive Derelict 8104 | -5/Extension | Spotted B-75 Beast 8105 | -5/Extension | Rescued a captive Derelict 8105 | -5/Extension | Rescued a captive Derelict 8383 | -5/Extension | Destroyed B-75 Beast 8393 | -5/Extension | Spotted B-75 Beast 8468 | -5/Extension | Destroyed B-75 Beast 8474 | -5/Extension | Discovered new exit (range 3) 8548 | -5/Extension | Rescued a captive Derelict 8549 | -5/Extension | Rescued a captive Derelict 8573 | -5/Extension | Rescued a captive Derelict 8693 | -5/Extension | Rescued a captive Derelict 8764 | -5/Extension | Discovered new exit (range 18) 8791 | -5/Extension | Discovered new exit (range 10) 8816 | -5/Extension | Identified exit to Cetus 8824 | -5/Extension | Identified exit to Factory 8848 | -5/Extension | Entered Cetus 8848 | -5/Cetus | Accompanied by 16 allies (A7) 8849 | -5/Cetus | Loaded intel: 24 machine locations 8853 | -5/Cetus | Acquired a Cetus Manufacturing Module code from A7 8893 | -5/Cetus | Started Cetus Manufacturing Module 8918 | -5/Cetus | Manufactured an Enhanced Grunt 8925 | -5/Cetus | Build established: Commander-Scout 8925 | -5/Cetus | Escorted A7 to Cetus Mainframe 8934 | -5/Cetus | Discovered new exit (range 21) 8943 | -5/Cetus | Manufactured an Enhanced Grunt 8968 | -5/Cetus | Manufactured an Enhanced Grunt 8993 | -5/Cetus | Manufactured an Enhanced Grunt 9010 | -5/Cetus | Spotted Cetus Guard 9010 | -5/Cetus | Spotted Cetus Guard 9010 | -5/Cetus | Spotted Cetus Guard 9010 | -5/Cetus | Spotted Cetus Guard 9011 | -5/Cetus | Discovered exit to Factory (range 21) 9018 | -5/Cetus | Manufactured an Enhanced Grunt 9031 | -5/Cetus | Allies destroyed Cetus Guard 9032 | -5/Cetus | Allies destroyed Cetus Guard 9053 | -5/Cetus | Met Revision 17 9062 | -5/Cetus | Identified exit to Archives 9132 | -5/Cetus | Entered Archives 9132 | -5/Archives | Accompanied by 19 allies (A7) 9133 | -5/Archives | Loaded intel: 8 machine locations 9141 | -5/Archives | Received a hacking code to weaken MAIN.C 9166 | -5/Archives | Discovered new exit (range 19) 9174 | -5/Archives | Discovered new exit (range 22) 9175 | -5/Archives | Discovered exit to Factory (range 22) 9179 | -5/Archives | Identified exit to Hub_04(d) 9189 | -5/Archives | Lost 3 allies 9234 | -5/Archives | Entered Hub_04(d) 9234 | -5/Hub_04(d) | Accompanied by 15 allies 9234 | -5/Hub_04(d) | Spotted B-75 Beast 9235 | -5/Hub_04(d) | Loaded intel: 93 machine locations 9431 | -5/Hub_04(d) | Network Hub disabled 9438 | -5/Hub_04(d) | Spotted Lightning 9438 | -5/Hub_04(d) | Spotted Lightning 9440 | -5/Hub_04(d) | Spotted Lightning 9440 | -5/Hub_04(d) | Entered Factory 9440 | -4/Factory | Evolved 2 slots: Power x1, Utility x1 9441 | -4/Factory | Loaded intel: 281 machine locations 9605 | -4/Factory | Identified exit to Upper Caves 9605 | -4/Factory | Identified exit to Armory 9645 | -4/Factory | Entered Armory 9646 | -4/Armory | Loaded intel: 113 machine locations 9799 | -4/Armory | Discovered new exit (range 11) 9799 | -4/Armory | Lost 3 parts (1p1n1u) 9829 | -4/Armory | Discovered new exit (range 20) 9855 | -4/Armory | Attacked by bots powering up and referring to "LRC-V3" 9856 | -4/Armory | Identified exit to Lab 9856 | -4/Armory | Entered Lab 9856 | -4/Lab | Discovered new exit (range 9) 9858 | -4/Lab | Identified exit to Research 9859 | -4/Lab | Hidden lab's door opened automatically 9859 | -4/Lab | Sensor layout match revealed 9860 | -4/Lab | Gained access to the hidden lab's interior 9874 | -4/Lab | Found Prototype Special Weapon 9874 | -4/Lab | Identified Gui. Remote Datajack 9877 | -4/Lab | Detected by scanners 9886 | -4/Lab | Hacked A5 with code downloaded from Data Conduit 9889 | -4/Lab | Destroyed A5 9917 | -4/Lab | Decrypted terminal 9927 | -4/Lab | Found Prototype Device 9927 | -4/Lab | Identified AEGIS Remote Shield 9936 | -4/Lab | Found Alien Artifact 9936 | -4/Lab | Identified Integrated Dissipator 9936 | -4/Lab | Installed Integrated Dissipator, increased core heat dissipation (+20) 9942 | -4/Lab | Found Alien Artifact 9942 | -4/Lab | Identified Core Expander 9942 | -4/Lab | Installed Core Expander, added new Weapon slot 9953 | -4/Lab | Found Deep Network Scanner 9960 | -4/Lab | Found Alien Artifact 9973 | -4/Lab | Decrypted terminal 9973 | -4/Lab | Found Alien Artifact 9973 | -4/Lab | Identified LC Capacitor 10019 | -4/Lab | Entered Research 10019 | -3/Research | Evolved 2 slots: Propulsion x1, Utility x1 10020 | -3/Research | Loaded intel: 106 machine locations 10047 | -3/Research | Found Adv. Micro-nuke Launcher 10086 | -3/Research | Identified exit to Quarantine 10136 | -3/Research | Entered Quarantine 10137 | -3/Quarantine | Loaded intel: 78 machine locations 10162 | -3/Quarantine | Found Alien Artifact 10174 | -3/Quarantine | Cryocooling Duct disabled 10177 | -3/Quarantine | Discovered new exit (range 20) 10189 | -3/Quarantine | Ambient heat levels rising (+20) 10189 | -3/Quarantine | Non-combat units ordered to evacuate 10197 | -3/Quarantine | Found Alien Artifact 10197 | -3/Quarantine | Identified Dimensional Node Initializer 10197 | -3/Quarantine | Initialized slip node 10201 | -3/Quarantine | Found Alien Artifact 10229 | -3/Quarantine | Spotted Fortress 10246 | -3/Quarantine | Discovered new exit (range 6) 10246 | -3/Quarantine | Discovered new exit (range 7) 10247 | -3/Quarantine | Identified exit to Section 7 10248 | -3/Quarantine | Entered Section 7 10249 | -3/Section 7 | Loaded intel: 124 machine locations 10256 | -3/Section 7 | Found Integrated Dissipator 10256 | -3/Section 7 | Installed Integrated Dissipator, increased core heat dissipation (+20) 10272 | -3/Section 7 | Spotted S7 Guard 10273 | -3/Section 7 | Discovered new exit (range 17) 10284 | -3/Section 7 | Spotted Executioner 10285 | -3/Section 7 | Spotted Executioner 10305 | -3/Section 7 | Found Alien Energy Cannon 10306 | -3/Section 7 | Installed L-Cannon capacitor 10334 | -3/Section 7 | Identified exit to Research 10334 | -3/Section 7 | Entered Research 10334 | -2/Research | Evolved 2 slots: Propulsion x1, Weapon x1 10335 | -2/Research | Loaded intel: 115 machine locations 10338 | -2/Research | Identified exit to Access 10338 | -2/Research | Identified exit to Testing 10363 | -2/Research | Watched by a mysterious "MATRIX" hacker 10394 | -2/Research | Spotted B-90 Cyclops 10413 | -2/Research | Entered Testing 10414 | -2/Testing | Loaded intel: 97 machine locations 10437 | -2/Testing | Discovered exit to Access (range 19) 10439 | -2/Testing | Spotted PH-JRTYRQAS7U 10459 | -2/Testing | Entered Access 10459 | -1/Access | Evolved 2 slots: Propulsion x1, Utility x1 10460 | -1/Access | Loaded intel: 125 machine locations 10475 | -1/Access | Fired L-Cannon 10475 | -1/Access | Spotted B-99 Colossus 10507 | -1/Access | Discovered new exit (range 7) 10508 | -1/Access | Identified exit to Command 10508 | -1/Access | Entered Command 10509 | -1/Command | Loaded intel: 68 machine locations 10514 | -1/Command | Spotted B-99 Colossus 10518 | -1/Command | Fired L-Cannon 10785 | -1/Command | Fired L-Cannon 10785 | -1/Command | 0b10 Conduit disabled 10788 | -1/Command | MAIN.C activated Command garrisons 10831 | -1/Command | Fired L-Cannon 10841 | -1/Command | Fired L-Cannon 10841 | -1/Command | Destroyed MAIN.C 10851 | -1/Command | Fired L-Cannon 10851 | -1/Command | Phase Generator disabled 11096 | -1/Command | All MAIN.C guards destroyed 11167 | -1/Command | Build established: Hacker-Mutant 11238 | -1/Command | Fired L-Cannon 11404 | -1/Command | Identified Hpw. Transdimensional Reconstructor 11404 | -1/Command | Discovered new exit (range 179) 11404 | -1/Command | Discovered new exit (range 67) 11404 | -1/Command | Extracted map data and part IDs from MAIN.C's data core 11445 | -1/Command | Found Exp. Powered Armor 11955 | -1/Command | Found Hvy. Regenerative Plating 11964 | -1/Command | Found Exp. Targeting Computer 12003 | -1/Command | Fired L-Cannon 12034 | -1/Command | Build established: Scavenger-Mutant 12121 | -1/Command | Found Hpw. Disruptor Cannon 12508 | -1/Command | Fired L-Cannon 12525 | -1/Command | Found Perforator 12537 | -1/Command | Found Vortex Chain Reactor 12540 | -1/Command | Found Vortex Chain Reactor 13054 | -1/Command | Build established: Scavenger-Tank 13137 | -1/Command | Found Exp. Targeting Computer 13153 | -1/Command | Found Exp. Targeting Computer 13317 | -1/Command | Found Exp. Targeting Computer 13398 | -1/Command | Found Multirail 13438 | -1/Command | Build established: Scavenger-Gunner 14830 | -1/Command | Found Exp. Core Analyzer 15261 | -1/Command | Warped through subspace to slip node 15261 | -1/Command | Discovered new exit (range 4) 15274 | -1/Command | Found Centrium Heavy Armor Plating 15278 | -1/Command | Entered Access_0 15278 | -1/Access_0 | Fired L-Cannon 15278 | -1/Access_0 | Architect warped through subspace 15278 | -1/Access_0 | Destroyed A8 15278 | -1/Access_0 | Subspace Access Node disabled 15279 | -1/Access_0 | Loaded intel: 51 machine locations 15304 | -1/Access_0 | Fired L-Cannon 15304 | -1/Access_0 | Subspace Access Node disabled 15304 | -1/Access_0 | Singularity Gate disabled 15304 | -1/Access_0 | Singularity Gate disabled 15314 | -1/Access_0 | Fired L-Cannon 15324 | -1/Access_0 | Fired L-Cannon 15324 | -1/Access_0 | Subspace Access Node disabled 15334 | -1/Access_0 | Fired L-Cannon 15334 | -1/Access_0 | Architect warped through subspace 15344 | -1/Access_0 | Fired L-Cannon 15344 | -1/Access_0 | Subspace Access Node disabled 15354 | -1/Access_0 | Fired L-Cannon 15354 | -1/Access_0 | Destroyed Architect 15401 | -1/Access_0 | Found Hpw. Transdimensional Reconstructor 15402 | -1/Access_0 | Extracted unknown sensor trigger ID from Architect's data core 15407 | -1/Access_0 | Found Prototype Hackware 15410 | -1/Access_0 | Found Prototype Hackware 15414 | -1/Access_0 | Found Prototype Hackware 15418 | -1/Access_0 | Found Prototype Protection 15421 | -1/Access_0 | Found Prototype Hackware 15425 | -1/Access_0 | Found Prototype Hackware 15432 | -1/Access_0 | Found Alien Energy Gun 15436 | -1/Access_0 | Warped through subspace to slip node 15436 | -1/Access_0 | Discovered new exit (range 8) 15458 | -1/Access_0 | Fired L-Cannon 15516 | *** | Establishing 0b11! Last Messages --------------- 15401_ Acquired Hpw. Transdimensional Reconstructor. 15402_ Acquired data core, extracted unknown sensor trigger ID. 15404_ Dropped Adv. Micro-nuke Launcher. 15404_ Dropped Adv. Heavy Treads. 15407_ Acquired Prototype Hackware. 15418_ Acquired Prototype Protection. 15421_ Acquired Prototype Hackware. 15428_ Dropped Quantum Reactor. 15432_ Acquired Alien Energy Gun. 15436_ Warped through subspace, drawn to slip node. 15436_ EXIT=FOUND 15458_ Activated siege mode. 15458_ Beam penetrates Wall. 15458_ Beam penetrates Earth. 15458_ Beam penetrates Wall. 15458_ Beam penetrates Earth. 15516_ Ended siege mode. Map ----- +----------------------------------------------------+ | | | | | | | | | | | | | | | | | | | | | | | | | | | | | | | | | ?????????????????????????????????????????????????? | | ?????????????????????????????????????????????????? | | ?????????????????????????????????????????????????? | | ?????????????????????????????????????????????????? | | ?????????????????????????????????????????????????? | | ?????????????????????????????????????????????????? | | ????????????????????????###??????????????????????? | | ??????????????????????### ##?????????????????????? | | ??????????????????????#; #?????????????????????? | | ??????????????????????#; @ #?????????????????????? | | ?????????????????????#;; #?????????????????????? | | ????????????????????# ; #?????????????????????? | | ????????????????????# ; ##?????????????????????? | | ???????????????????# ;# #?????????????????????? | | ???????????????????# ; #?????????????????????? | | ??????????????????# # ##?????????????????????? | | ?????????????????# # < #?????????????????????? | | ?????????????????# ## ##?????????????????????? | | ????????????????? #?## #??????????????????????? | | ????????????????# ???####??????????????????????? | | ???????????????? #?????????????????????????????? | | ??????????????? ??????????????????????????????? | | ??????????????# ???????????????????????????????? | | ?????????????? #???????????????????????????????? | | ?????????????# ????????????????????????????????? | | ????????????? ?????????????????????????????????? | | ????????????? ?????????????????????????????????? | | ?????????????????????????????????????????????????? | | ?????????????????????????????????????????????????? | | ?????????????????????????????????????????????????? | | ?????????????????????????????????????????????????? | | ?????????????????????????????????????????????????? | | ?????????????????????????????????????????????????? | | ?????????????????????????????????????????????????? | +----------------------------------------------------+ Best States ------------- Heat Dissipation 161 Energy Generation 55 Energy Capacity 700 Matter Stores 300 Matter Capacity 300 Sight Range 22 Robot Scan Range 16 Terrain Scan Range 20 Terrain Scan Density 210 Armor Coverage 2000 Melee Speed Boost 30 Evasion (%) 66 Targeting Accuracy 56 Recoil Reduction 8 Offensive Hacking 50 Defensive Hacking 25 Item Schematics ----------------- Cld. VTOL Module | -7/Factory | Scanalyzed Combat Drone Bay | -7/Data Miner | Free Lgt. Regenerative Plating | -7/Data Miner | Free Biomechanical Wings | -7/Data Miner | Free Exp. Targeting Computer | -7/Data Miner | Free Imp. Heavy Laser | -7/Data Miner | Free Arm. Medium Treads | -7/Data Miner | Free Imp. Corruption Screen | -7/Data Miner | Free Hyp. Coil Gun | -7/Data Miner | Free Hvy. Phase Cannon | -7/Data Miner | Free Antigrav System | -7/Data Miner | Free Imp. Remote Shield | -7/Data Miner | Free Imp. Antigrav System | -7/Data Miner | Free Imp. Medium Treads | -6/Zion | Archive Neutrino Core | -6/Zion | Archive Adv. Recoil Stabilizer | -6/Zion | Archive Thermic Laser | -6/Zion | Archive Lrn. Tractor Beam | -6/Zion | Archive Imp. Particle Charger | -6/Zion | Archive Imp. Point Defense System | -6/Zion | Archive Lgt. Antimatter Reactor | -6/Zion | Archive Lrn. Missile Launcher | -6/Zion | Archive Magnetic Acceleration Cannon | -6/Zion | Archive Adv. Field Recycling Unit | -6/Zion | Archive Imp. Reaction Control System | -6/Zion | Archive Hyp. Gauss Cannon | -6/Zion | Archive Enh. Optical Array | -6/Zion | Archive Imp. KE Penetrator | -6/Zion | Archive Robot Schematics ------------------ W-25 Informer | -7/Data Miner | Free I-36 Angel | -7/Data Miner | Free G-47 Trooper | -7/Data Miner | Free B-48 Gladiator | -7/Data Miner | Free E-15 Imp | -7/Data Miner | Free D-63 Destroyer | -7/Data Miner | Free M-22 Extractor | -6/Zion | Archive R-06 Scavenger | -6/Zion | Archive R-10 Processor | -6/Zion | Archive Fabricated ------------ Cld. VTOL Module | x1 | -7/Factory Repaired ---------- Nothing Studied --------- Lgt. Nuclear Core | -7/Factory | Hacked Q-thruster | -2/Testing | Hacked Alien Tech Used ----------------- Integrated Dissipator Core Expander LC Capacitor Dimensional Node Initializer L-Cannon High-powered Transdimensional Reconstructor Achievements -------------- I Am Starship Now Challenges ------------ None Game ------ Seed ForceCoolantStripper Manual? 0 Play Time 01:40:14 Cumulative 1502.5 hours Start 2026.06.29 @ 20:27:43 End 2026.06.29 @ 22:30:19 Sessions 4 Manual Loads 0 Difficulty Rogue Special Mode None Game No. 752 Rogue 743 Adventurer 9 Explorer 0 Win Type 1 Total 385 Types 191/28/91/14/4/5/17/12/10/13 Lore% 99 Gallery% 94 Achievement% 96 Wizard Run 0 Options --------- Layout 2 ASCII 0 Keyboard 0 Movement Arrows Keybinds 0 Fullscreen 1 Font 32/SmallcapsGlow Map View 50x44 Zoom Use 0% Tactical HUD 1 Map Filters NONE Filters NONE Steam 1 RUN: e483ee3c-b997-45a9-be24-2d7b51d9a07f